Workbook

Sheet data (hidden)
A1: -->
A2: Call us at 480.788.2687
A3: Home
A4: Detailed Search
A5: Communities
A6: Phoenix (City)
A7: Scottsdale (City)
A8: McCormick Ranch
A9: Arcadia
A10: Desert Ridge
A11: Kierland
A12: Buying
A13: Selling
A14: Short Sale Info
A15: Short Sale FAQ’S
A16: Short Sale Approvals
A17: Reviews
A18: Blog
A19: About Us
A20: About Us / Contact
A21: Meet the Team
A22: Media Room
A23: Our Listings
A24: Join Our Team
A25: For Sale Phoenix Homes
A26: Phoenix Real Estate Made Easy...
A27: 37 W Park Avenue, Gilbert, AZ 85233 (MLS # 4687653)
A28: Request More Info Schedule a Showing Share Print
A29: Photo for 37 W Park Avenue, Gilbert, AZ 85233 (MLS # 4687653) | B29: Price | C29: 40900
B30: Beds | C30: 2
B31: Baths | C31: 1.00 baths
B32: Home size | C32: 990 sq ft
B33: Lot Size | C33: 3,250 sqft
B34: Days on Market | C34: 36
A35: WHAT A GREAT OPPORTUNITY HERE!!! THIS UPDATED 2 BEDROOM, 1 BATH HOME INCLUDES NEWER PAINT. UNBELIEVABLY GREAT LOCATION! A BLOCK FROM DOWNTOWN GILBERT AND ACROSS THE STREET FROM A PARK. THIS HOME HAS A LIEN FROM TOWN OF GILBERT ON IT DUE TO A STRUCTURAL CRACK ON EXTERIOR OF BUILDING. BUYER TO BE RESPONSIBLE FOR MAKING THE REPAIRS AND ACQUIRING LIEN WITH PURCHASE. SEE DISCLOSURES/NOTICE. BUYER TO VERIFY ALL FACTS AND FIGURES TO BE ACCURATE DURING THEIR INSPECTION PERIOD.
A36: Tiny photo for 37 W Park Avenue, Gilbert, AZ 85233 (MLS # 4687653)Tiny photo for 37 W Park Avenue, Gilbert, AZ 85233 (MLS # 4687653)Tiny photo for 37 W Park Avenue, Gilbert, AZ 85233 (MLS # 4687653)Tiny photo for 37 W Park Avenue, Gilbert, AZ 85233 (MLS # 4687653)Tiny photo for 37 W Park Avenue, Gilbert, AZ 85233 (MLS # 4687653)Tiny photo for 37 W Park Avenue, Gilbert, AZ 85233 (MLS # 4687653)Tiny photo for 37 W Park Avenue, Gilbert, AZ 85233 (MLS # 4687653)Tiny photo for 37 W Park Avenue, Gilbert, AZ 85233 (MLS # 4687653)Tiny photo for 37 W Park Avenue, Gilbert, AZ 85233 (MLS # 4687653)Tiny photo for 37 W Park Avenue, Gilbert, AZ 85233 (MLS # 4687653)
A37: Property Type(s): Single Family - Detached, Residential
A38: Last Updated | B38: 2012-04-09 | C38: Tract | D38: Lacy Tract
A39: Year Built | B39: 1943 | C39: County | D39: Maricopa
A40: Walk Score ® | B40: 82
A41: Schools
A42: School District | B42: Gilbert Unified District (041)
A43: Elementary School | B43: Oak Tree
A44: Grade School | B44: Gilbert Unified District (041)
A45: Jr. High School | B45: Gilbert
A46: High School | B46: Mesquite
A47: Additional Details
A48: Additional Bedroom | B48: Master Bdrm Dwnstrs, Master Bdrm Split, Mstr Bdr Walkin Clst, Othr Bdr Walkin Clst
A49: Architecture | B49: Ranch
A50: Assoc Rules/Info | B50: None
A51: Association & Fees: Cap Imprv/Impact Fee | B51: 0
A52: Association & Fees: HOA 2 Y/N | B52: N
A53: Association & Fees: Homeowners Assoc | B53: N
A54: Association & Fees: Land Lease Fee | B54: 0
A55: Association & Fees: PAD Fee | B55: 0
A56: Association Fee Incl | B56: No Fees
A57: Basement Description | B57: None
A58: Builder Name | B58: UNK
A59: Const - Finish | B59: Painted
A60: Construction | B60: Other (See Remarks)
A61: Cooling | B61: Other (See Remarks)
A62: County Code | B62: Maricopa
A63: Dining Area | B63: Eat-in Kitchen
A64: Dwelling Type | B64: Single Family - Detached
A65: Elementary School | B65: Oak Tree
A66: Exterior Features | B66: Patio
A67: Fencing | B67: Chain Link
A68: Fireplace | B68: No Fireplace
A69: Flooring | B69: Carpet, Tile
A70: Heating | B70: Other (See Remarks)
A71: High School | B71: Mesquite, Mesquite
A72: Kitchen Features | B72: None, Range/Oven Elec
A73: Landscaping | B73: Desert Front
A74: Laundry | B74: Inside Laundry
A75: Legal Info: Lot Number | B75: 1
A76: Legal Info: Range | B76: 5E
A77: Legal Info: Section | B77: 12
A78: Legal Info: Township | B78: 1S
A79: Master Bathroom | B79: Full Bth Master Bdrm
A80: Other Rooms | B80: Family Room
A81: Ownership | B81: Fee Simple
A82: Pool - Private | B82: No Pool
A83: Property Description | B83: Corner Lot
A84: Roofing | B84: Other (See Remarks)
A85: Sewer | B85: Other (See Remarks), Sewer - Public
A86: Source Apx Lot SqFt | B86: County Assessor
A87: Source of SqFt | B87: County Assessor
A88: Spa | B88: None
A89: Special Listing Cond | B89: N/A
A90: Status | B90: Active
A91: Tax Municipality | B91: Gilbert
A92: Tax Year | B92: 2011
A93: Taxes | B93: 281
A94: Utilities | B94: APS, SW Gas
A95: Water | B95: City Water
A96: Location
A97: Bird's Eye
A98: Listed with A-Z Real Estate Professionals
A100: Contact us about this Property
A101: First Name
A102: Last Name
A103: Phone Number
A104: Email Address
A105: Schedule a Showing? | B105: /
A106: Comments
A109: We respect your online privacy and will never spam you. By submitting this form with your telephone number you are consenting for Bob Hertzog to contact you even if your name is on a Federal or State "Do not call List".
A112: The ARMLS logo indicates a property listed by a real estate brokerage other than Summit Home Consultants.
A113: All information should be verified by the recipient and none is guaranteed as accurate by ARMLS.
A115: Copyright 2012 Arizona Regional Multiple Listing Service, Inc. All rights reserved.
A117: Data last updated 4/11/12 7:23 PM PDT.
A119: This IDX solution is (c) Diverse Solutions 2012.
A120: Share via
A121: Share on TwitterTwitter
A122: Share on FacebookFacebook
A123: Share on DwelliciousDwellicious
A124: Share by EmailEmail
A125: Email a Friend
A126: Your Email
A128: Friend's Email
A130: Note
A134: Share this:
A135: Share
A136: Facebook
A137: Twitter
A138: LinkedIn
A139: Email
A140: Print
A141: Digg
A142: Reddit
A143: StumbleUpon
A144: Quick Home Search
A146: City
A147: Min price
A148: Max price
A149: Size | B149: + sq ft
A150: Beds | B150: +
A151: Baths | B151: +
A152: Article Categories
A153: Arcadia Phoenix
A154: Buyers
A155: Desert Ridge Phoenix
A156: Featured
A157: Kierland Scottsdale
A158: McCormick Ranch Scottsdale
A159: OneWest/IndyMac FDIC Blog Posts
A160: Our Listings
A161: Paradise Valley School Dist.
A162: Realtors
A163: Scottsdale School Dist.
A164: Sellers
A165: Short Sale Info
A166: Tag Cloud (Topics) phoenix short sale • phoenix short sale agent • phoenix short sale realtor • arizona pre foreclosure • phoenix homes for sale • kierland homes for sale • arizona foreclosure options • FDIC shared loss agreement • onewest bank • fannie mae short sale • fdic • Desert Ridge AZ Homes For Sale • IndyMac Short Sale • McCormick Ranch Homes For Sale • Arcadia AZ Homes Search • Desert Ridge Aviano • McCormick Ranch Homes Search • phoenix homes • Phoenix Real Estate Trends • IndyMac Bank • freddie mac short sale • Desert Ridge AZ • Onewest bank short sale • Desert Ridge AZ Home Search • kierland homes monthly report • Arcadia AZ Homes • short sale • Kierland Home Search • stop foreclosure arizona • Arcadia AZ Homes For Sale • kierland scottsdale • hafa short sale • fannie mae bailout • mccormick ranch homes monthly report • McCormick Ranch Homes Monthly Real Estate Report • fannie mae foreclosure • FNMA Short Sale
A167: Summit Home Consultants: 7702 E Doubletree Ranch Rd. Suite 300
A168: Scottsdale, AZ 85258 • Tel: 480.788.2687
A169: © 2011, Summit Home Consultants
A170: All rights reserved.
A171: Send to Email Address Your Name Your Email Address loadingCancel
A172: Post was not sent - check your email addresses!
A173: Email check failed, please try again
A174: Sorry, your blog cannot share posts by email.

Sheet Purchase in Gilbert1
A1: MLS ID | B1: Purchase Price | C1: City | D1: State | E1: Zip Code | F1: Beds | G1: Baths | H1: Square Feet | I1: $/Sqrft | J1: $/Bedroom | K1: $bed and bath
A2: 4457727 | B2: 598000 | C2: Gilbert | D2: AZ | E2: 85234 | F2: 4 | G2: 4 | H2: 4457 | I2: =B2/H2 -> 134.170967 | J2: =B2/F2 -> 149500 | K2: =B2/SUM(F2:G2) -> 74750 | L2: City Searched: | M2: Gilbert
A3: 4572336 | B3: 597500 | C3: Gilbert | D3: AZ | E3: 85298 | F3: 5 | G3: 4 | H3: 3780 | I3: =B3/H3 -> 158.0687831 | J3: =B3/F3 -> 119500 | K3: =B3/SUM(F3:G3) -> 66388.88889 | L3: Max Price Searched: | M3: 600000
A4: 4673165 | B4: 577000 | C4: Gilbert | D4: AZ | E4: 85298 | F4: 5 | G4: 4 | H4: 4323 | I4: 133.4721258 | J4: 115400 | K4: 64111.11111
A5: 4695291 | B5: 575000 | C5: Gilbert | D5: AZ | E5: 85295 | F5: 4 | G5: 2 | H5: 3412 | I5: 168.5228605 | J5: 143750 | K5: 95833.33333
A6: 4728441 | B6: 559900 | C6: Gilbert | D6: AZ | E6: 85296 | F6: 5 | G6: 4 | H6: 4181 | I6: 133.9153313 | J6: 111980 | K6: 62211.11111
A7: 4679053 | B7: 549000 | C7: Gilbert | D7: AZ | E7: 85234 | F7: 4 | G7: 4 | H7: 4280 | I7: 128.271028 | J7: 137250 | K7: 68625
A8: 4714665 | B8: 545500 | C8: Gilbert | D8: AZ | E8: 85298 | F8: 4 | G8: 4 | H8: 4142 | I8: 131.699662 | J8: 136375 | K8: 68187.5
A9: 4740287 | B9: 530000 | C9: Gilbert | D9: AZ | E9: 85234 | F9: 4 | G9: 4 | H9: 4359 | I9: 121.5875201 | J9: 132500 | K9: 66250
A10: 4643253 | B10: 525000 | C10: Gilbert | D10: AZ | E10: 85233 | F10: 4 | G10: 4 | H10: 3200 | I10: 164.0625 | J10: 131250 | K10: 65625
A11: 4738210 | B11: 503000 | C11: Gilbert | D11: AZ | E11: 85234 | F11: 4 | G11: 3 | H11: 2870 | I11: 175.261324 | J11: 125750 | K11: 71857.14286
A12: 4581453 | B12: 499900 | C12: Gilbert | D12: AZ | E12: 85298 | F12: 6 | G12: 4 | H12: 4177 | I12: 119.6791956 | J12: 83316.66667 | K12: 49990
A13: 4690579 | B13: 499000 | C13: Gilbert | D13: AZ | E13: 85298 | F13: 5 | G13: 3 | H13: 4069 | I13: 122.6345539 | J13: 99800 | K13: 62375
A14: 4710899 | B14: 499000 | C14: Gilbert | D14: AZ | E14: 85233 | F14: 5 | G14: 4 | H14: 3834 | I14: 130.151278 | J14: 99800 | K14: 55444.44444
A15: 4736360 | B15: 499000 | C15: Gilbert | D15: AZ | E15: 85296 | F15: 5 | G15: 4 | H15: 3700 | I15: 134.8648649 | J15: 99800 | K15: 55444.44444
A16: 4742177 | B16: 499000 | C16: Gilbert | D16: AZ | E16: 85295 | F16: 5 | G16: 4 | H16: 4372 | I16: 114.1354071 | J16: 99800 | K16: 55444.44444
A17: 4730383 | B17: 491400 | C17: Gilbert | D17: AZ | E17: 85298 | F17: 6 | G17: 4 | H17: 4857 | I17: 101.1735639 | J17: 81900 | K17: 49140
A18: 4711090 | B18: 490957 | C18: Gilbert | D18: AZ | E18: 85298 | F18: 5 | G18: 4 | H18: 4065 | I18: 120.7766298 | J18: 98191.4 | K18: 54550.77778
A19: 4730597 | B19: 485000 | C19: Gilbert | D19: AZ | E19: 85233 | F19: 5 | G19: 3 | H19: 3251 | I19: 149.1848662 | J19: 97000 | K19: 60625
A20: 4735157 | B20: 469900 | C20: Gilbert | D20: AZ | E20: 85296 | F20: 4 | G20: 2 | H20: 2510 | I20: 187.2111554 | J20: 117475 | K20: 78316.66667
A21: 4726387 | B21: 458085 | C21: Gilbert | D21: AZ | E21: 85298 | F21: 5 | G21: 4 | H21: 3379 | I21: 135.5682154 | J21: 91617 | K21: 50898.33333
A22: 4704911 | B22: 450000 | C22: Gilbert | D22: AZ | E22: 85297 | F22: 6 | G22: 4 | H22: 5816 | I22: 77.37276479 | J22: 75000 | K22: 45000
A23: 4722387 | B23: 450000 | C23: Gilbert | D23: AZ | E23: 85234 | F23: 5 | G23: 3 | H23: 3742 | I23: 120.2565473 | J23: 90000 | K23: 56250
A24: 4694209 | B24: 449900 | C24: Gilbert | D24: AZ | E24: 85298 | F24: 4 | G24: 3 | H24: 3892 | I24: 115.5960946 | J24: 112475 | K24: 64271.42857
A25: 4668688 | B25: 449000 | C25: Gilbert | D25: AZ | E25: 85298 | F25: 3 | G25: 2 | H25: 3264 | I25: 137.5612745 | J25: 149666.6667 | K25: 89800
A26: 4669666 | B26: 448900 | C26: Gilbert | D26: AZ | E26: 85298 | F26: 4 | G26: 4 | H26: 3618 | I26: 124.0740741 | J26: 112225 | K26: 56112.5
A27: 4723544 | B27: 447900 | C27: Gilbert | D27: AZ | E27: 85298 | F27: 5 | G27: 4 | H27: 3410 | I27: 131.3489736 | J27: 89580 | K27: 49766.66667
A28: 4676190 | B28: 439000 | C28: Gilbert | D28: AZ | E28: 85295 | F28: 6 | G28: 4 | H28: 4330 | I28: 101.3856813 | J28: 73166.66667 | K28: 43900
A29: 4697314 | B29: 439000 | C29: Gilbert | D29: AZ | E29: 85295 | F29: 5 | G29: 4 | H29: 4366 | I29: 100.5497022 | J29: 87800 | K29: 48777.77778
A30: 4642761 | B30: 437000 | C30: Gilbert | D30: AZ | E30: 85297 | F30: 5 | G30: 4 | H30: 4755 | I30: 91.90325973 | J30: 87400 | K30: 48555.55556
A31: 4739682 | B31: 429000 | C31: Gilbert | D31: AZ | E31: 85298 | F31: 2 | G31: 2 | H31: 2551 | I31: 168.1693454 | J31: 214500 | K31: 107250
A32: 4727399 | B32: 426500 | C32: Gilbert | D32: AZ | E32: 85234 | F32: 5 | G32: 3 | H32: 3742 | I32: 113.9764832 | J32: 85300 | K32: 53312.5
A33: 4731516 | B33: 425000 | C33: Gilbert | D33: AZ | E33: 85297 | F33: 5 | G33: 4 | H33: 4593 | I33: 92.53211409 | J33: 85000 | K33: 47222.22222
A34: 4740375 | B34: 425000 | C34: Gilbert | D34: AZ | E34: 85234 | F34: 4 | G34: 3 | H34: 2943 | I34: 144.4104655 | J34: 106250 | K34: 60714.28571
A35: 4558826 | B35: 421995 | C35: Gilbert | D35: AZ | E35: 85297 | F35: 5 | G35: 4 | H35: 4858 | I35: 86.86599424 | J35: 84399 | K35: 46888.33333
A36: 4739302 | B36: 414900 | C36: Gilbert | D36: AZ | E36: 85233 | F36: 4 | G36: 3 | H36: 3370 | I36: 123.115727 | J36: 103725 | K36: 59271.42857
A37: 4741826 | B37: 412490 | C37: Gilbert | D37: AZ | E37: 85297 | F37: 4 | G37: 3 | H37: 0 | J37: 103122.5 | K37: 58927.14286
A38: 4742176 | B38: 410000 | C38: Gilbert | D38: AZ | E38: 85297 | F38: 4 | G38: 4 | H38: 3808 | I38: 107.6680672 | J38: 102500 | K38: 51250
A39: 4672169 | B39: 409950 | C39: Gilbert | D39: AZ | E39: 85296 | F39: 5 | G39: 3 | H39: 4822 | I39: 85.01659063 | J39: 81990 | K39: 51243.75
A40: 4562799 | B40: 409416 | C40: Gilbert | D40: AZ | E40: 85298 | F40: 4 | G40: 4 | H40: 3528 | I40: 116.047619 | J40: 102354 | K40: 51177
A41: 4742660 | B41: 400000 | C41: Gilbert | D41: AZ | E41: 85295 | F41: 6 | G41: 4 | H41: 3788 | I41: 105.5966209 | J41: 66666.66667 | K41: 40000
A42: 4627911 | B42: 399950 | C42: Gilbert | D42: AZ | E42: 85298 | F42: 3 | G42: 2 | H42: 2505 | I42: 159.6606786 | J42: 133316.6667 | K42: 79990
A43: 4503401 | B43: 399900 | C43: Gilbert | D43: AZ | E43: 85298 | F43: 4 | G43: 3 | H43: 3290 | I43: 121.550152 | J43: 99975 | K43: 57128.57143
A44: 4710705 | B44: 399900 | C44: Gilbert | D44: AZ | E44: 85298 | F44: 3 | G44: 2 | H44: 2000 | I44: 199.95 | J44: 133300 | K44: 79980
A45: 4725760 | B45: 398000 | C45: Gilbert | D45: AZ | E45: 85298 | F45: 2 | G45: 2 | H45: 2379 | I45: 167.2971837 | J45: 199000 | K45: 99500
A46: 4737598 | B46: 393900 | C46: Gilbert | D46: AZ | E46: 85297 | F46: 5 | G46: 3 | H46: 4755 | I46: 82.83911672 | J46: 78780 | K46: 49237.5
A47: 4641250 | B47: 389900 | C47: Gilbert | D47: AZ | E47: 85298 | F47: 4 | G47: 2 | H47: 3027 | I47: 128.8074001 | J47: 97475 | K47: 64983.33333
A48: 4736661 | B48: 389000 | C48: Gilbert | D48: AZ | E48: 85234 | F48: 3 | G48: 3 | H48: 3820 | I48: 101.8324607 | J48: 129666.6667 | K48: 64833.33333
A49: 4741779 | B49: 379900 | C49: Gilbert | D49: AZ | E49: 85234 | F49: 5 | G49: 3 | H49: 3038 | I49: 125.0493746 | J49: 75980 | K49: 47487.5
A50: 4479577 | B50: 379500 | C50: Gilbert | D50: AZ | E50: 85296 | F50: 3 | G50: 2 | H50: 1689 | I50: 224.6891652 | J50: 126500 | K50: 75900
A51: 4722065 | B51: 377000 | C51: Gilbert | D51: AZ | E51: 85297 | F51: 3 | G51: 3 | H51: 2408 | I51: 156.5614618 | J51: 125666.6667 | K51: 62833.33333
A52: 4659135 | B52: 375000 | C52: Gilbert | D52: AZ | E52: 85295 | F52: 5 | G52: 3 | H52: 3659 | I52: 102.4870183 | J52: 75000 | K52: 46875
A53: 4663673 | B53: 375000 | C53: Gilbert | D53: AZ | E53: 85297 | F53: 3 | G53: 2 | H53: 0 | J53: 125000 | K53: 75000
A54: 4737036 | B54: 375000 | C54: Gilbert | D54: AZ | E54: 85298 | F54: 5 | G54: 4 | H54: 4120 | I54: 91.01941748 | J54: 75000 | K54: 41666.66667
A55: 4711987 | B55: 369900 | C55: Gilbert | D55: AZ | E55: 85298 | F55: 3 | G55: 3 | H55: 2551 | I55: 145.00196 | J55: 123300 | K55: 61650
A56: 4702789 | B56: 359900 | C56: Gilbert | D56: AZ | E56: 85297 | F56: 3 | G56: 4 | H56: 3411 | I56: 105.5115802 | J56: 119966.6667 | K56: 51414.28571
A57: 4473766 | B57: 359000 | C57: Gilbert | D57: AZ | E57: 85298 | F57: 3 | G57: 2 | H57: 2156 | I57: 166.5120594 | J57: 119666.6667 | K57: 71800
A58: 4717222 | B58: 359000 | C58: Gilbert | D58: AZ | E58: 85298 | F58: 5 | G58: 3 | H58: 3011 | I58: 119.2294919 | J58: 71800 | K58: 44875
A59: 4661300 | B59: 350000 | C59: Gilbert | D59: AZ | E59: 85298 | F59: 2 | G59: 2 | H59: 2282 | I59: 153.3742331 | J59: 175000 | K59: 87500
A60: 4684316 | B60: 350000 | C60: Gilbert | D60: AZ | E60: 85234 | F60: 5 | G60: 4 | H60: 3183 | I60: 109.959158 | J60: 70000 | K60: 38888.88889
A61: 4731020 | B61: 350000 | C61: Gilbert | D61: AZ | E61: 85296 | F61: 4 | G61: 2 | H61: 3000 | I61: 116.6666667 | J61: 87500 | K61: 58333.33333
A62: 4741882 | B62: 350000 | C62: Gilbert | D62: AZ | E62: 85234 | F62: 4 | G62: 3 | H62: 2964 | I62: 118.0836707 | J62: 87500 | K62: 50000
A63: 4725560 | B63: 349900 | C63: Gilbert | D63: AZ | E63: 85234 | F63: 3 | G63: 2 | H63: 2475 | I63: 141.3737374 | J63: 116633.3333 | K63: 69980
A64: 4735267 | B64: 349900 | C64: Gilbert | D64: AZ | E64: 85233 | F64: 5 | G64: 3 | H64: 3284 | I64: 106.546894 | J64: 69980 | K64: 43737.5
A65: 4740046 | B65: 349900 | C65: Gilbert | D65: AZ | E65: 85233 | F65: 4 | G65: 2 | H65: 2507 | I65: 139.5692062 | J65: 87475 | K65: 58316.66667
A66: 4699608 | B66: 349700 | C66: Gilbert | D66: AZ | E66: 85296 | F66: 5 | G66: 3 | H66: 3034 | I66: 115.2603823 | J66: 69940 | K66: 43712.5
A67: 4726848 | B67: 349500 | C67: Gilbert | D67: AZ | E67: 85297 | F67: 3 | G67: 4 | H67: 2948 | I67: =B67/H67 -> 118.5549525 | J67: =B67/F67 -> 116500 | K67: =B67/SUM(F67:G67) -> 49928.57143
A68: 4738059 | B68: 345995 | C68: Gilbert | D68: AZ | E68: 85297 | F68: 3 | G68: 2 | H68: 3111 | I68: 111.2166506 | J68: 115331.6667 | K68: 69199
A69: 4735242 | B69: 345000 | C69: Gilbert | D69: AZ | E69: 85295 | F69: 4 | G69: 3 | H69: 3518 | I69: 98.06708357 | J69: 86250 | K69: 49285.71429
A70: 4737434 | B70: 345000 | C70: Gilbert | D70: AZ | E70: 85295 | F70: 4 | G70: 3 | H70: 3000 | I70: 115 | J70: 86250 | K70: 49285.71429
A71: 4697640 | B71: 341968 | C71: Gilbert | D71: AZ | E71: 85295 | F71: 4 | G71: 4 | H71: 3729 | I71: 91.70501475 | J71: 85492 | K71: 42746
A72: 4630779 | B72: 339900 | C72: Gilbert | D72: AZ | E72: 85298 | F72: 2 | G72: 2 | H72: 1650 | I72: 206 | J72: 169950 | K72: 84975
A73: 4720636 | B73: 339900 | C73: Gilbert | D73: AZ | E73: 85298 | F73: 2 | G73: 2 | H73: 1703 | I73: 199.5889607 | J73: 169950 | K73: 84975
A74: 4638963 | B74: 339500 | C74: Gilbert | D74: AZ | E74: 85234 | F74: 3 | G74: 3 | H74: 2944 | I74: 115.3192935 | J74: 113166.6667 | K74: 56583.33333
A75: 4560243 | B75: 336000 | C75: Gilbert | D75: AZ | E75: 85298 | F75: 2 | G75: 2 | H75: 2551 | I75: 131.7130537 | J75: 168000 | K75: 84000
A76: 4740763 | B76: 335000 | C76: Gilbert | D76: AZ | E76: 85233 | F76: 5 | G76: 3 | H76: 2732 | I76: 122.6207906 | J76: 67000 | K76: 41875
A77: 4671793 | B77: 330000 | C77: Gilbert | D77: AZ | E77: 85298 | F77: 3 | G77: 2 | H77: 2274 | I77: 145.1187335 | J77: 110000 | K77: 66000
A78: 4718831 | B78: 330000 | C78: Gilbert | D78: AZ | E78: 85233 | F78: 6 | G78: 3 | H78: 3255 | I78: 101.3824885 | J78: 55000 | K78: 36666.66667
A79: 4741811 | B79: 329990 | C79: Gilbert | D79: AZ | E79: 85297 | F79: 4 | G79: 3 | H79: 3142 | I79: 105.0254615 | J79: 82497.5 | K79: 47141.42857
A80: 4530364 | B80: 329900 | C80: Gilbert | D80: AZ | E80: 85298 | F80: 2 | G80: 2 | H80: 1917 | I80: 172.0918101 | J80: 164950 | K80: 82475
A81: 4742891 | B81: 329900 | C81: Gilbert | D81: AZ | E81: 85298 | F81: 4 | G81: 3 | H81: 2740 | I81: 120.4014599 | J81: 82475 | K81: 47128.57143
A82: 4679824 | B82: 329000 | C82: Gilbert | D82: AZ | E82: 85234 | F82: 4 | G82: 3 | H82: 3100 | I82: 106.1290323 | J82: 82250 | K82: 47000
A83: 4716609 | B83: 329000 | C83: Gilbert | D83: AZ | E83: 85298 | F83: 3 | G83: 2 | H83: 2231 | I83: 147.4675034 | J83: 109666.6667 | K83: 65800
A84: 4736649 | B84: 329000 | C84: Gilbert | D84: AZ | E84: 85298 | F84: 3 | G84: 3 | H84: 2358 | I84: 139.5250212 | J84: 109666.6667 | K84: 54833.33333
A85: 4721779 | B85: 326900 | C85: Gilbert | D85: AZ | E85: 85296 | F85: 5 | G85: 4 | H85: 3328 | I85: 98.22716346 | J85: 65380 | K85: 36322.22222
A86: 4739831 | B86: 325918 | C86: Gilbert | D86: AZ | E86: 85297 | F86: 4 | G86: 2 | H86: 2833 | I86: 115.0434169 | J86: 81479.5 | K86: 54319.66667
A87: 4693874 | B87: 325000 | C87: Gilbert | D87: AZ | E87: 85295 | F87: 5 | G87: 3 | H87: 3739 | I87: 86.9216368 | J87: 65000 | K87: 40625
A88: 4741051 | B88: 325000 | C88: Gilbert | D88: AZ | E88: 85234 | F88: 4 | G88: 2 | H88: 2336 | I88: 139.1267123 | J88: 81250 | K88: 54166.66667
A89: 4742296 | B89: 325000 | C89: Gilbert | D89: AZ | E89: 85298 | F89: 4 | G89: 2 | H89: 2986 | I89: 108.8412592 | J89: 81250 | K89: 54166.66667
A90: 4684022 | B90: 324900 | C90: Gilbert | D90: AZ | E90: 85298 | F90: 2 | G90: 2 | H90: 2114 | I90: 153.6896878 | J90: 162450 | K90: 81225
A91: 4727049 | B91: 324727 | C91: Gilbert | D91: AZ | E91: 85234 | F91: 4 | G91: 3 | H91: 2537 | I91: 127.9964525 | J91: 81181.75 | K91: 46389.57143
A92: 4704850 | B92: 318689 | C92: Gilbert | D92: AZ | E92: 85297 | F92: 4 | G92: 3 | H92: 2766 | I92: 115.2165582 | J92: 79672.25 | K92: 45527
A93: 4731480 | B93: 315900 | C93: Gilbert | D93: AZ | E93: 85295 | F93: 4 | G93: 2 | H93: 3432 | I93: 92.04545455 | J93: 78975 | K93: 52650
A94: 4665022 | B94: 315000 | C94: Gilbert | D94: AZ | E94: 85233 | F94: 5 | G94: 4 | H94: 4198 | I94: 75.0357313 | J94: 63000 | K94: 35000
A95: 4711386 | B95: 315000 | C95: Gilbert | D95: AZ | E95: 85297 | F95: 5 | G95: 3 | H95: 2984 | I95: 105.5630027 | J95: 63000 | K95: 39375
A96: 4695213 | B96: 313500 | C96: Gilbert | D96: AZ | E96: 85298 | F96: 2 | G96: 2 | H96: 2114 | I96: 148.2970672 | J96: 156750 | K96: 78375
A97: 4741803 | B97: 310000 | C97: Gilbert | D97: AZ | E97: 85233 | F97: 4 | G97: 2 | H97: 3059 | I97: 101.3403073 | J97: 77500 | K97: 51666.66667
A98: 4668698 | B98: 309900 | C98: Gilbert | D98: AZ | E98: 85233 | F98: 4 | G98: 2 | H98: 3089 | I98: 100.3237294 | J98: 77475 | K98: 51650
A99: 4698246 | B99: 309358 | C99: Gilbert | D99: AZ | E99: 85298 | F99: 4 | G99: 2 | H99: 2865 | I99: 107.9783595 | J99: 77339.5 | K99: 51559.66667
A100: 4465414 | B100: 307900 | C100: Gilbert | D100: AZ | E100: 85234 | F100: 4 | G100: 2 | H100: 3136 | I100: 98.18239796 | J100: 76975 | K100: 51316.66667
A101: 4742364 | B101: 304500 | C101: Gilbert | D101: AZ | E101: 85233 | F101: 3 | G101: 2 | H101: 2400 | I101: 126.875 | J101: 101500 | K101: 60900
A102: 4702630 | B102: 300000 | C102: Gilbert | D102: AZ | E102: 85298 | F102: 2 | G102: 2 | H102: 2114 | I102: 141.9110691 | J102: 150000 | K102: 75000
A103: 4722121 | B103: 299900 | C103: Gilbert | D103: AZ | E103: 85233 | F103: 5 | G103: 3 | H103: 2806 | I103: 106.8781183 | J103: 59980 | K103: 37487.5
A104: 4740045 | B104: 299900 | C104: Gilbert | D104: AZ | E104: 85297 | F104: 5 | G104: 3 | H104: 3039 | I104: 98.68377756 | J104: 59980 | K104: 37487.5
A105: 4693465 | B105: 299000 | C105: Gilbert | D105: AZ | E105: 85234 | F105: 3 | G105: 2 | H105: 2172 | I105: 137.6611418 | J105: 99666.66667 | K105: 59800
A106: 4736207 | B106: 299000 | C106: Gilbert | D106: AZ | E106: 85295 | F106: 5 | G106: 2 | H106: 2797 | I106: 106.9002503 | J106: 59800 | K106: 42714.28571
A107: 4736837 | B107: 295898 | C107: Gilbert | D107: AZ | E107: 85297 | F107: 4 | G107: 2 | H107: 2691 | I107: 109.9583798 | J107: 73974.5 | K107: 49316.33333
A108: 4742546 | B108: 295000 | C108: Gilbert | D108: AZ | E108: 85297 | F108: 3 | G108: 2 | H108: 1632 | I108: 180.7598039 | J108: 98333.33333 | K108: 59000
A109: 4737571 | B109: 294665 | C109: Gilbert | D109: AZ | E109: 85296 | F109: 4 | G109: 2 | H109: 2747 | I109: 107.2679286 | J109: 73666.25 | K109: 49110.83333
A110: 4711478 | B110: 294000 | C110: Gilbert | D110: AZ | E110: 85298 | F110: 3 | G110: 2 | H110: 2551 | I110: 115.248922 | J110: 98000 | K110: 58800
A111: 4737536 | B111: 290085 | C111: Gilbert | D111: AZ | E111: 85296 | F111: 4 | G111: 2 | H111: 2747 | I111: 105.6006553 | J111: 72521.25 | K111: 48347.5
A112: 4722108 | B112: 290000 | C112: Gilbert | D112: AZ | E112: 85297 | F112: 4 | G112: 3 | H112: 1931 | I112: 150.1812532 | J112: 72500 | K112: 41428.57143
A113: 4738374 | B113: 290000 | C113: Gilbert | D113: AZ | E113: 85233 | F113: 4 | G113: 2 | H113: 2414 | I113: 120.1325601 | J113: 72500 | K113: 48333.33333
A114: 4737356 | B114: 289900 | C114: Gilbert | D114: AZ | E114: 85295 | F114: 5 | G114: 3 | H114: 2493 | I114: 116.2855997 | J114: 57980 | K114: 36237.5
A115: 4742354 | B115: 289900 | C115: Gilbert | D115: AZ | E115: 85234 | F115: 3 | G115: 3 | H115: 0 | J115: 96633.33333 | K115: 48316.66667
A116: 4719537 | B116: 289899 | C116: Gilbert | D116: AZ | E116: 85295 | F116: 5 | G116: 3 | H116: 3211 | I116: 90.28308938 | J116: 57979.8 | K116: 36237.375
A117: 4719062 | B117: 289800 | C117: Gilbert | D117: AZ | E117: 85296 | F117: 6 | G117: 3 | H117: 3891 | I117: 74.47956823 | J117: 48300 | K117: 32200
A118: 4738199 | B118: 289000 | C118: Gilbert | D118: AZ | E118: 85234 | F118: 5 | G118: 3 | H118: 3385 | I118: 85.37666174 | J118: 57800 | K118: 36125
A119: 4743023 | B119: 289000 | C119: Gilbert | D119: AZ | E119: 85234 | F119: 6 | G119: 3 | H119: 2706 | I119: 106.7997044 | J119: 48166.66667 | K119: 32111.11111
A120: 4649234 | B120: 285000 | C120: Gilbert | D120: AZ | E120: 85234 | F120: 5 | G120: 3 | H120: 3116 | I120: 91.46341463 | J120: 57000 | K120: 35625
A121: 4742058 | B121: 285000 | C121: Gilbert | D121: AZ | E121: 85297 | F121: 5 | G121: 3 | H121: 3353 | I121: 84.9985088 | J121: 57000 | K121: 35625
A122: 4687789 | B122: 284900 | C122: Gilbert | D122: AZ | E122: 85233 | F122: 5 | G122: 3 | H122: 2856 | I122: 99.75490196 | J122: 56980 | K122: 35612.5
A123: 4723028 | B123: 284900 | C123: Gilbert | D123: AZ | E123: 85234 | F123: 4 | G123: 3 | H123: 1967 | I123: 144.8398577 | J123: 71225 | K123: 40700
A124: 4737538 | B124: 284500 | C124: Gilbert | D124: AZ | E124: 85234 | F124: 4 | G124: 2 | H124: 2685 | I124: 105.9590317 | J124: 71125 | K124: 47416.66667
A125: 4709186 | B125: 280000 | C125: Gilbert | D125: AZ | E125: 85298 | F125: 5 | G125: 3 | H125: 2540 | I125: 110.2362205 | J125: 56000 | K125: 35000
A126: 4733475 | B126: 279900 | C126: Gilbert | D126: AZ | E126: 85298 | F126: 4 | G126: 2 | H126: 2873 | I126: 97.42429516 | J126: 69975 | K126: 46650
A127: 4742308 | B127: 279900 | C127: Gilbert | D127: AZ | E127: 85295 | F127: 5 | G127: 4 | H127: 3152 | I127: 88.80076142 | J127: 55980 | K127: 31100
A128: 4693050 | B128: 279000 | C128: Gilbert | D128: AZ | E128: 85233 | F128: 4 | G128: 2 | H128: 3009 | I128: 92.7218345 | J128: 69750 | K128: 46500
A129: 4702288 | B129: 279000 | C129: Gilbert | D129: AZ | E129: 85297 | F129: 3 | G129: 2 | H129: 2185 | I129: 127.6887872 | J129: 93000 | K129: 55800
A130: 4733956 | B130: 278500 | C130: Gilbert | D130: AZ | E130: 85298 | F130: 3 | G130: 2 | H130: 2000 | I130: 139.25 | J130: 92833.33333 | K130: 55700
A131: 4717011 | B131: 277327 | C131: Gilbert | D131: AZ | E131: 85297 | F131: 3 | G131: 3 | H131: 2389 | I131: =B131/H131 -> 116.0849728 | J131: =B131/F131 -> 92442.33333 | K131: =B131/SUM(F131:G131) -> 46221.16667
A132: 4713844 | B132: 275000 | C132: Gilbert | D132: AZ | E132: 85234 | F132: 5 | G132: 3 | H132: 2355 | I132: 116.7728238 | J132: 55000 | K132: 34375
A133: 4734442 | B133: 275000 | C133: Gilbert | D133: AZ | E133: 85233 | F133: 3 | G133: 2 | H133: 2299 | I133: 119.6172249 | J133: 91666.66667 | K133: 55000
A134: 4740399 | B134: 274900 | C134: Gilbert | D134: AZ | E134: 85234 | F134: 5 | G134: 3 | H134: 2719 | I134: 101.1033468 | J134: 54980 | K134: 34362.5
A135: 4741540 | B135: 274800 | C135: Gilbert | D135: AZ | E135: 85296 | F135: 4 | G135: 3 | H135: 2554 | I135: 107.595928 | J135: 68700 | K135: 39257.14286
A136: 4562753 | B136: 274059 | C136: Gilbert | D136: AZ | E136: 85298 | F136: 3 | G136: 2 | H136: 2247 | I136: 121.9666222 | J136: 91353 | K136: 54811.8
A137: 4702090 | B137: 270000 | C137: Gilbert | D137: AZ | E137: 85234 | F137: 5 | G137: 3 | H137: 3116 | I137: 86.64955071 | J137: 54000 | K137: 33750
A138: 4686963 | B138: 269900 | C138: Gilbert | D138: AZ | E138: 85298 | F138: 2 | G138: 2 | H138: 2114 | I138: 127.6726585 | J138: 134950 | K138: 67475
A139: 4723391 | B139: 269900 | C139: Gilbert | D139: AZ | E139: 85233 | F139: 4 | G139: 2 | H139: 2583 | I139: 104.4909021 | J139: 67475 | K139: 44983.33333
A140: 4739736 | B140: 269500 | C140: Gilbert | D140: AZ | E140: 85298 | F140: 3 | G140: 2 | H140: 2361 | I140: 114.1465481 | J140: 89833.33333 | K140: 53900
A141: 4702823 | B141: 269000 | C141: Gilbert | D141: AZ | E141: 85298 | F141: 4 | G141: 2 | H141: 3266 | I141: 82.3637477 | J141: 67250 | K141: 44833.33333
A142: 4735337 | B142: 269000 | C142: Gilbert | D142: AZ | E142: 85297 | F142: 4 | G142: 2 | H142: 2512 | I142: 107.0859873 | J142: 67250 | K142: 44833.33333
A143: 4724535 | B143: 268900 | C143: Gilbert | D143: AZ | E143: 85295 | F143: 4 | G143: 2 | H143: 3102 | I143: 86.68600903 | J143: 67225 | K143: 44816.66667
A144: 4735656 | B144: 267225 | C144: Gilbert | D144: AZ | E144: 85234 | F144: 4 | G144: 2 | H144: 2623 | I144: 101.877621 | J144: 66806.25 | K144: 44537.5
A145: 4732983 | B145: 266384 | C145: Gilbert | D145: AZ | E145: 85295 | F145: 4 | G145: 2 | H145: 2478 | I145: 107.4995964 | J145: 66596 | K145: 44397.33333
A146: 4675985 | B146: 265000 | C146: Gilbert | D146: AZ | E146: 85297 | F146: 4 | G146: 2 | H146: 3221 | I146: 82.27258615 | J146: 66250 | K146: 44166.66667
A147: 4742206 | B147: 265000 | C147: Gilbert | D147: AZ | E147: 85234 | F147: 5 | G147: 3 | H147: 2527 | I147: 104.8674317 | J147: 53000 | K147: 33125
A148: 4711996 | B148: 264500 | C148: Gilbert | D148: AZ | E148: 85298 | F148: 4 | G148: 3 | H148: 3247 | I148: 81.45980905 | J148: 66125 | K148: 37785.71429
A149: 4731387 | B149: 264434 | C149: Gilbert | D149: AZ | E149: 85298 | F149: 2 | G149: 2 | H149: 1703 | I149: 155.2753964 | J149: 132217 | K149: 66108.5
A150: 4720220 | B150: 264000 | C150: Gilbert | D150: AZ | E150: 85298 | F150: 4 | G150: 2 | H150: 2109 | I150: 125.1778094 | J150: 66000 | K150: 44000
A151: 4710995 | B151: 261957 | C151: Gilbert | D151: AZ | E151: 85295 | F151: 4 | G151: 2 | H151: 2478 | I151: 105.7130751 | J151: 65489.25 | K151: 43659.5
A152: 4717906 | B152: 260470 | C152: Gilbert | D152: AZ | E152: 85298 | F152: 3 | G152: 2 | H152: 2109 | I152: 123.5040303 | J152: 86823.33333 | K152: 52094
A153: 4623640 | B153: 260000 | C153: Gilbert | D153: AZ | E153: 85233 | F153: 3 | G153: 2 | H153: 2832 | I153: 91.8079096 | J153: 86666.66667 | K153: 52000
A154: 4725159 | B154: 260000 | C154: Gilbert | D154: AZ | E154: 85234 | F154: 4 | G154: 3 | H154: 2538 | I154: 102.4428684 | J154: 65000 | K154: 37142.85714
A155: 4691586 | B155: 259990 | C155: Gilbert | D155: AZ | E155: 85234 | F155: 4 | G155: 3 | H155: 3100 | I155: 83.86774194 | J155: 64997.5 | K155: 37141.42857
A156: 4738280 | B156: 259900 | C156: Gilbert | D156: AZ | E156: 85233 | F156: 5 | G156: 3 | H156: 2947 | I156: 88.19138107 | J156: 51980 | K156: 32487.5
A157: 4743093 | B157: 259900 | C157: Gilbert | D157: AZ | E157: 85233 | F157: 4 | G157: 2 | H157: 2377 | I157: 109.3395036 | J157: 64975 | K157: 43316.66667
A158: 4736973 | B158: 259500 | C158: Gilbert | D158: AZ | E158: 85233 | F158: 4 | G158: 2 | H158: 2010 | I158: 129.1044776 | J158: 64875 | K158: 43250
A159: 4725100 | B159: 259000 | C159: Gilbert | D159: AZ | E159: 85297 | F159: 3 | G159: 3 | H159: 2192 | I159: 118.1569343 | J159: 86333.33333 | K159: 43166.66667
A160: 4738401 | B160: 258000 | C160: Gilbert | D160: AZ | E160: 85233 | F160: 5 | G160: 3 | H160: 2376 | I160: 108.5858586 | J160: 51600 | K160: 32250
A161: 4686047 | B161: 257900 | C161: Gilbert | D161: AZ | E161: 85298 | F161: 2 | G161: 2 | H161: 1703 | I161: 151.4386377 | J161: 128950 | K161: 64475
A162: 4727809 | B162: 256840 | C162: Gilbert | D162: AZ | E162: 85297 | F162: 5 | G162: 3 | H162: 2785 | I162: 92.22262118 | J162: 51368 | K162: 32105
A163: 4635548 | B163: 255000 | C163: Gilbert | D163: AZ | E163: 85233 | F163: 4 | G163: 3 | H163: 3045 | I163: 83.74384236 | J163: 63750 | K163: 36428.57143
A164: 4742230 | B164: 255000 | C164: Gilbert | D164: AZ | E164: 85234 | F164: 4 | G164: 2 | H164: 2197 | I164: 116.0673646 | J164: 63750 | K164: 42500
A165: 4719055 | B165: 254900 | C165: Gilbert | D165: AZ | E165: 85297 | F165: 4 | G165: 2 | H165: 2200 | I165: 115.8636364 | J165: 63725 | K165: 42483.33333
A166: 4731884 | B166: 254900 | C166: Gilbert | D166: AZ | E166: 85298 | F166: 3 | G166: 2 | H166: 2097 | I166: 121.5546018 | J166: 84966.66667 | K166: 50980
A167: 4734489 | B167: 254900 | C167: Gilbert | D167: AZ | E167: 85298 | F167: 2 | G167: 2 | H167: 1473 | I167: 173.048201 | J167: 127450 | K167: 63725
A168: 4741226 | B168: 254900 | C168: Gilbert | D168: AZ | E168: 85295 | F168: 5 | G168: 3 | H168: 3356 | I168: 75.95351609 | J168: 50980 | K168: 31862.5
A169: 4737507 | B169: 253023 | C169: Gilbert | D169: AZ | E169: 85298 | F169: 5 | G169: 4 | H169: 2887 | I169: 87.64218912 | J169: 50604.6 | K169: 28113.66667
A170: 4729105 | B170: 250000 | C170: Gilbert | D170: AZ | E170: 85295 | F170: 4 | G170: 2 | H170: 2314 | I170: 108.0380294 | J170: 62500 | K170: 41666.66667
A171: 4730313 | B171: 250000 | C171: Gilbert | D171: AZ | E171: 85296 | F171: 4 | G171: 3 | H171: 3102 | I171: 80.5931657 | J171: 62500 | K171: 35714.28571
A172: 4733167 | B172: 250000 | C172: Gilbert | D172: AZ | E172: 85298 | F172: 4 | G172: 3 | H172: 2121 | I172: 117.8689298 | J172: 62500 | K172: 35714.28571
A173: 4740974 | B173: 250000 | C173: Gilbert | D173: AZ | E173: 85233 | F173: 4 | G173: 2 | H173: 2198 | I173: 113.7397634 | J173: 62500 | K173: 41666.66667
A174: 4743227 | B174: 250000 | C174: Gilbert | D174: AZ | E174: 85296 | F174: 4 | G174: 2 | H174: 2604 | I174: 96.00614439 | J174: 62500 | K174: 41666.66667
A175: 4687508 | B175: 249999 | C175: Gilbert | D175: AZ | E175: 85298 | F175: 4 | G175: 2 | H175: 2064 | I175: 121.1235465 | J175: 62499.75 | K175: 41666.5
A176: 4716397 | B176: 249900 | C176: Gilbert | D176: AZ | E176: 85297 | F176: 3 | G176: 2 | H176: 1955 | I176: 127.826087 | J176: 83300 | K176: 49980
A177: 4728609 | B177: 249900 | C177: Gilbert | D177: AZ | E177: 85295 | F177: 4 | G177: 3 | H177: 2146 | I177: 116.4492078 | J177: 62475 | K177: 35700
A178: 4741195 | B178: 249900 | C178: Gilbert | D178: AZ | E178: 85233 | F178: 4 | G178: 2 | H178: 2255 | I178: 110.8203991 | J178: 62475 | K178: 41650
A179: 4735624 | B179: 249748 | C179: Gilbert | D179: AZ | E179: 85234 | F179: 3 | G179: 2 | H179: 2304 | I179: 108.3975694 | J179: 83249.33333 | K179: 49949.6
A180: 4670537 | B180: 245344 | C180: Gilbert | D180: AZ | E180: 85298 | F180: 3 | G180: 2 | H180: 2070 | I180: 118.5236715 | J180: 81781.33333 | K180: 49068.8
A181: 4722270 | B181: 244950 | C181: Gilbert | D181: AZ | E181: 85298 | F181: 3 | G181: 2 | H181: 2380 | I181: 102.9201681 | J181: 81650 | K181: 48990
A182: 4684433 | B182: 242000 | C182: Gilbert | D182: AZ | E182: 85298 | F182: 2 | G182: 2 | H182: 2231 | I182: 108.4715374 | J182: 121000 | K182: 60500
A183: 4710943 | B183: 240000 | C183: Gilbert | D183: AZ | E183: 85295 | F183: 5 | G183: 3 | H183: 3345 | I183: 71.74887892 | J183: 48000 | K183: 30000
A184: 4707085 | B184: 239900 | C184: Gilbert | D184: AZ | E184: 85296 | F184: 4 | G184: 3 | H184: 2694 | I184: 89.04974016 | J184: 59975 | K184: 34271.42857
A185: 4735913 | B185: 239900 | C185: Gilbert | D185: AZ | E185: 85234 | F185: 4 | G185: 3 | H185: 2177 | I185: 110.1975195 | J185: 59975 | K185: 34271.42857
A186: 4738979 | B186: 239900 | C186: Gilbert | D186: AZ | E186: 85298 | F186: 2 | G186: 2 | H186: 1604 | I186: 149.563591 | J186: 119950 | K186: 59975
A187: 4742269 | B187: 239900 | C187: Gilbert | D187: AZ | E187: 85297 | F187: 5 | G187: 3 | H187: 3193 | I187: 75.13310366 | J187: 47980 | K187: 29987.5
A188: 4723894 | B188: 239663 | C188: Gilbert | D188: AZ | E188: 85297 | F188: 4 | G188: 3 | H188: 2503 | I188: 95.75029964 | J188: 59915.75 | K188: 34237.57143
A189: 4718613 | B189: 237500 | C189: Gilbert | D189: AZ | E189: 85297 | F189: 4 | G189: 2 | H189: 2560 | I189: 92.7734375 | J189: 59375 | K189: 39583.33333
A190: 4634666 | B190: 236900 | C190: Gilbert | D190: AZ | E190: 85298 | F190: 5 | G190: 3 | H190: 3062 | I190: 77.36773351 | J190: 47380 | K190: 29612.5
A191: 4718404 | B191: 236900 | C191: Gilbert | D191: AZ | E191: 85298 | F191: 4 | G191: 2 | H191: 2375 | I191: 99.74736842 | J191: 59225 | K191: 39483.33333
A192: 4733589 | B192: 235000 | C192: Gilbert | D192: AZ | E192: 85298 | F192: 3 | G192: 3 | H192: 2020 | I192: 116.3366337 | J192: 78333.33333 | K192: 39166.66667
A193: 4737029 | B193: 235000 | C193: Gilbert | D193: AZ | E193: 85296 | F193: 4 | G193: 3 | H193: 2239 | I193: 104.9575703 | J193: 58750 | K193: 33571.42857
A194: 4737217 | B194: 235000 | C194: Gilbert | D194: AZ | E194: 85234 | F194: 4 | G194: 2 | H194: 2513 | I194: 93.51372861 | J194: 58750 | K194: 39166.66667
A195: 4742496 | B195: 235000 | C195: Gilbert | D195: AZ | E195: 85296 | F195: 4 | G195: 2 | H195: 2298 | I195: =B195/H195 -> 102.2628372 | J195: =B195/F195 -> 58750 | K195: =B195/SUM(F195:G195) -> 39166.66667
A196: 4742361 | B196: 234000 | C196: Gilbert | D196: AZ | E196: 85234 | F196: 4 | G196: 3 | H196: 2885 | I196: 81.10918544 | J196: 58500 | K196: 33428.57143
A197: 4717532 | B197: 233000 | C197: Gilbert | D197: AZ | E197: 85298 | F197: 4 | G197: 3 | H197: 3073 | I197: 75.82167263 | J197: 58250 | K197: 33285.71429
A198: 4741879 | B198: 232990 | C198: Gilbert | D198: AZ | E198: 85298 | F198: 4 | G198: 3 | H198: 0 | J198: 58247.5 | K198: 33284.28571
A199: 4722514 | B199: 231351 | C199: Gilbert | D199: AZ | E199: 85295 | F199: 3 | G199: 2 | H199: 2088 | I199: 110.8002874 | J199: 77117 | K199: 46270.2
A200: 4734463 | B200: 230000 | C200: Gilbert | D200: AZ | E200: 85233 | F200: 3 | G200: 2 | H200: 1957 | I200: 117.5268268 | J200: 76666.66667 | K200: 46000
... 121 more rows

Sheet CSV (hidden)
A1: MLS ID | B1: Purchase Price | C1: City | D1: State | E1: Zip Code | F1: Beds | G1: Baths | H1: Square Feet | I1: $/Sqrft | J1: $/Bedroom | K1: $bed and bath | Z1: http://www.helpyoubuyrealestate.com/Search.aspx?segmentid=3859754&uid=79955&sid=79955&sponsorid=79955&htmlfile=1097019.html&revise=Y&mlstableid=ARMLSRES
A2: 4457727 | B2: 598000 | C2: Gilbert | D2: AZ | E2: 85234 | F2: 4 | G2: 4 | H2: 4457 | I2: =B2/H2 -> 134.170967 | J2: =B2/F2 -> 149500 | K2: =B2/SUM(F2:G2) -> 74750
A3: 4572336 | B3: 597500 | C3: Gilbert | D3: AZ | E3: 85298 | F3: 5 | G3: 4 | H3: 3780 | I3: =B3/H3 -> 158.0687831 | J3: =B3/F3 -> 119500 | K3: =B3/SUM(F3:G3) -> 66388.88889
A4: 4673165 | B4: 577000 | C4: Gilbert | D4: AZ | E4: 85298 | F4: 5 | G4: 4 | H4: 4323 | I4: 133.4721258 | J4: 115400 | K4: 64111.11111
A5: 4695291 | B5: 575000 | C5: Gilbert | D5: AZ | E5: 85295 | F5: 4 | G5: 2 | H5: 3412 | I5: 168.5228605 | J5: 143750 | K5: 95833.33333
A6: 4728441 | B6: 559900 | C6: Gilbert | D6: AZ | E6: 85296 | F6: 5 | G6: 4 | H6: 4181 | I6: 133.9153313 | J6: 111980 | K6: 62211.11111
A7: 4679053 | B7: 549000 | C7: Gilbert | D7: AZ | E7: 85234 | F7: 4 | G7: 4 | H7: 4280 | I7: 128.271028 | J7: 137250 | K7: 68625
A8: 4714665 | B8: 545500 | C8: Gilbert | D8: AZ | E8: 85298 | F8: 4 | G8: 4 | H8: 4142 | I8: 131.699662 | J8: 136375 | K8: 68187.5
A9: 4740287 | B9: 530000 | C9: Gilbert | D9: AZ | E9: 85234 | F9: 4 | G9: 4 | H9: 4359 | I9: 121.5875201 | J9: 132500 | K9: 66250
A10: 4643253 | B10: 525000 | C10: Gilbert | D10: AZ | E10: 85233 | F10: 4 | G10: 4 | H10: 3200 | I10: 164.0625 | J10: 131250 | K10: 65625
A11: 4738210 | B11: 503000 | C11: Gilbert | D11: AZ | E11: 85234 | F11: 4 | G11: 3 | H11: 2870 | I11: 175.261324 | J11: 125750 | K11: 71857.14286
A12: 4581453 | B12: 499900 | C12: Gilbert | D12: AZ | E12: 85298 | F12: 6 | G12: 4 | H12: 4177 | I12: 119.6791956 | J12: 83316.66667 | K12: 49990
A13: 4690579 | B13: 499000 | C13: Gilbert | D13: AZ | E13: 85298 | F13: 5 | G13: 3 | H13: 4069 | I13: 122.6345539 | J13: 99800 | K13: 62375
A14: 4710899 | B14: 499000 | C14: Gilbert | D14: AZ | E14: 85233 | F14: 5 | G14: 4 | H14: 3834 | I14: 130.151278 | J14: 99800 | K14: 55444.44444
A15: 4736360 | B15: 499000 | C15: Gilbert | D15: AZ | E15: 85296 | F15: 5 | G15: 4 | H15: 3700 | I15: 134.8648649 | J15: 99800 | K15: 55444.44444
A16: 4742177 | B16: 499000 | C16: Gilbert | D16: AZ | E16: 85295 | F16: 5 | G16: 4 | H16: 4372 | I16: 114.1354071 | J16: 99800 | K16: 55444.44444
A17: 4730383 | B17: 491400 | C17: Gilbert | D17: AZ | E17: 85298 | F17: 6 | G17: 4 | H17: 4857 | I17: 101.1735639 | J17: 81900 | K17: 49140
A18: 4711090 | B18: 490957 | C18: Gilbert | D18: AZ | E18: 85298 | F18: 5 | G18: 4 | H18: 4065 | I18: 120.7766298 | J18: 98191.4 | K18: 54550.77778
A19: 4730597 | B19: 485000 | C19: Gilbert | D19: AZ | E19: 85233 | F19: 5 | G19: 3 | H19: 3251 | I19: 149.1848662 | J19: 97000 | K19: 60625
A20: 4735157 | B20: 469900 | C20: Gilbert | D20: AZ | E20: 85296 | F20: 4 | G20: 2 | H20: 2510 | I20: 187.2111554 | J20: 117475 | K20: 78316.66667
A21: 4726387 | B21: 458085 | C21: Gilbert | D21: AZ | E21: 85298 | F21: 5 | G21: 4 | H21: 3379 | I21: 135.5682154 | J21: 91617 | K21: 50898.33333
A22: 4704911 | B22: 450000 | C22: Gilbert | D22: AZ | E22: 85297 | F22: 6 | G22: 4 | H22: 5816 | I22: 77.37276479 | J22: 75000 | K22: 45000
A23: 4722387 | B23: 450000 | C23: Gilbert | D23: AZ | E23: 85234 | F23: 5 | G23: 3 | H23: 3742 | I23: 120.2565473 | J23: 90000 | K23: 56250
A24: 4694209 | B24: 449900 | C24: Gilbert | D24: AZ | E24: 85298 | F24: 4 | G24: 3 | H24: 3892 | I24: 115.5960946 | J24: 112475 | K24: 64271.42857
A25: 4668688 | B25: 449000 | C25: Gilbert | D25: AZ | E25: 85298 | F25: 3 | G25: 2 | H25: 3264 | I25: 137.5612745 | J25: 149666.6667 | K25: 89800
A26: 4669666 | B26: 448900 | C26: Gilbert | D26: AZ | E26: 85298 | F26: 4 | G26: 4 | H26: 3618 | I26: 124.0740741 | J26: 112225 | K26: 56112.5
A27: 4723544 | B27: 447900 | C27: Gilbert | D27: AZ | E27: 85298 | F27: 5 | G27: 4 | H27: 3410 | I27: 131.3489736 | J27: 89580 | K27: 49766.66667
A28: 4676190 | B28: 439000 | C28: Gilbert | D28: AZ | E28: 85295 | F28: 6 | G28: 4 | H28: 4330 | I28: 101.3856813 | J28: 73166.66667 | K28: 43900
A29: 4697314 | B29: 439000 | C29: Gilbert | D29: AZ | E29: 85295 | F29: 5 | G29: 4 | H29: 4366 | I29: 100.5497022 | J29: 87800 | K29: 48777.77778
A30: 4642761 | B30: 437000 | C30: Gilbert | D30: AZ | E30: 85297 | F30: 5 | G30: 4 | H30: 4755 | I30: 91.90325973 | J30: 87400 | K30: 48555.55556
A31: 4739682 | B31: 429000 | C31: Gilbert | D31: AZ | E31: 85298 | F31: 2 | G31: 2 | H31: 2551 | I31: 168.1693454 | J31: 214500 | K31: 107250
A32: 4727399 | B32: 426500 | C32: Gilbert | D32: AZ | E32: 85234 | F32: 5 | G32: 3 | H32: 3742 | I32: 113.9764832 | J32: 85300 | K32: 53312.5
A33: 4731516 | B33: 425000 | C33: Gilbert | D33: AZ | E33: 85297 | F33: 5 | G33: 4 | H33: 4593 | I33: 92.53211409 | J33: 85000 | K33: 47222.22222
A34: 4740375 | B34: 425000 | C34: Gilbert | D34: AZ | E34: 85234 | F34: 4 | G34: 3 | H34: 2943 | I34: 144.4104655 | J34: 106250 | K34: 60714.28571
A35: 4558826 | B35: 421995 | C35: Gilbert | D35: AZ | E35: 85297 | F35: 5 | G35: 4 | H35: 4858 | I35: 86.86599424 | J35: 84399 | K35: 46888.33333
A36: 4739302 | B36: 414900 | C36: Gilbert | D36: AZ | E36: 85233 | F36: 4 | G36: 3 | H36: 3370 | I36: 123.115727 | J36: 103725 | K36: 59271.42857
A37: 4741826 | B37: 412490 | C37: Gilbert | D37: AZ | E37: 85297 | F37: 4 | G37: 3 | H37: 0 | J37: 103122.5 | K37: 58927.14286
A38: 4742176 | B38: 410000 | C38: Gilbert | D38: AZ | E38: 85297 | F38: 4 | G38: 4 | H38: 3808 | I38: 107.6680672 | J38: 102500 | K38: 51250
A39: 4672169 | B39: 409950 | C39: Gilbert | D39: AZ | E39: 85296 | F39: 5 | G39: 3 | H39: 4822 | I39: 85.01659063 | J39: 81990 | K39: 51243.75
A40: 4562799 | B40: 409416 | C40: Gilbert | D40: AZ | E40: 85298 | F40: 4 | G40: 4 | H40: 3528 | I40: 116.047619 | J40: 102354 | K40: 51177
A41: 4742660 | B41: 400000 | C41: Gilbert | D41: AZ | E41: 85295 | F41: 6 | G41: 4 | H41: 3788 | I41: 105.5966209 | J41: 66666.66667 | K41: 40000
A42: 4627911 | B42: 399950 | C42: Gilbert | D42: AZ | E42: 85298 | F42: 3 | G42: 2 | H42: 2505 | I42: 159.6606786 | J42: 133316.6667 | K42: 79990
A43: 4503401 | B43: 399900 | C43: Gilbert | D43: AZ | E43: 85298 | F43: 4 | G43: 3 | H43: 3290 | I43: 121.550152 | J43: 99975 | K43: 57128.57143
A44: 4710705 | B44: 399900 | C44: Gilbert | D44: AZ | E44: 85298 | F44: 3 | G44: 2 | H44: 2000 | I44: 199.95 | J44: 133300 | K44: 79980
A45: 4725760 | B45: 398000 | C45: Gilbert | D45: AZ | E45: 85298 | F45: 2 | G45: 2 | H45: 2379 | I45: 167.2971837 | J45: 199000 | K45: 99500
A46: 4737598 | B46: 393900 | C46: Gilbert | D46: AZ | E46: 85297 | F46: 5 | G46: 3 | H46: 4755 | I46: 82.83911672 | J46: 78780 | K46: 49237.5
A47: 4641250 | B47: 389900 | C47: Gilbert | D47: AZ | E47: 85298 | F47: 4 | G47: 2 | H47: 3027 | I47: 128.8074001 | J47: 97475 | K47: 64983.33333
A48: 4736661 | B48: 389000 | C48: Gilbert | D48: AZ | E48: 85234 | F48: 3 | G48: 3 | H48: 3820 | I48: 101.8324607 | J48: 129666.6667 | K48: 64833.33333
A49: 4741779 | B49: 379900 | C49: Gilbert | D49: AZ | E49: 85234 | F49: 5 | G49: 3 | H49: 3038 | I49: 125.0493746 | J49: 75980 | K49: 47487.5
A50: 4479577 | B50: 379500 | C50: Gilbert | D50: AZ | E50: 85296 | F50: 3 | G50: 2 | H50: 1689 | I50: 224.6891652 | J50: 126500 | K50: 75900
A51: 4722065 | B51: 377000 | C51: Gilbert | D51: AZ | E51: 85297 | F51: 3 | G51: 3 | H51: 2408 | I51: 156.5614618 | J51: 125666.6667 | K51: 62833.33333
A52: 4659135 | B52: 375000 | C52: Gilbert | D52: AZ | E52: 85295 | F52: 5 | G52: 3 | H52: 3659 | I52: 102.4870183 | J52: 75000 | K52: 46875
A53: 4663673 | B53: 375000 | C53: Gilbert | D53: AZ | E53: 85297 | F53: 3 | G53: 2 | H53: 0 | J53: 125000 | K53: 75000
A54: 4737036 | B54: 375000 | C54: Gilbert | D54: AZ | E54: 85298 | F54: 5 | G54: 4 | H54: 4120 | I54: 91.01941748 | J54: 75000 | K54: 41666.66667
A55: 4711987 | B55: 369900 | C55: Gilbert | D55: AZ | E55: 85298 | F55: 3 | G55: 3 | H55: 2551 | I55: 145.00196 | J55: 123300 | K55: 61650
A56: 4702789 | B56: 359900 | C56: Gilbert | D56: AZ | E56: 85297 | F56: 3 | G56: 4 | H56: 3411 | I56: 105.5115802 | J56: 119966.6667 | K56: 51414.28571
A57: 4473766 | B57: 359000 | C57: Gilbert | D57: AZ | E57: 85298 | F57: 3 | G57: 2 | H57: 2156 | I57: 166.5120594 | J57: 119666.6667 | K57: 71800
A58: 4717222 | B58: 359000 | C58: Gilbert | D58: AZ | E58: 85298 | F58: 5 | G58: 3 | H58: 3011 | I58: 119.2294919 | J58: 71800 | K58: 44875
A59: 4661300 | B59: 350000 | C59: Gilbert | D59: AZ | E59: 85298 | F59: 2 | G59: 2 | H59: 2282 | I59: 153.3742331 | J59: 175000 | K59: 87500
A60: 4684316 | B60: 350000 | C60: Gilbert | D60: AZ | E60: 85234 | F60: 5 | G60: 4 | H60: 3183 | I60: 109.959158 | J60: 70000 | K60: 38888.88889
A61: 4731020 | B61: 350000 | C61: Gilbert | D61: AZ | E61: 85296 | F61: 4 | G61: 2 | H61: 3000 | I61: 116.6666667 | J61: 87500 | K61: 58333.33333
A62: 4741882 | B62: 350000 | C62: Gilbert | D62: AZ | E62: 85234 | F62: 4 | G62: 3 | H62: 2964 | I62: 118.0836707 | J62: 87500 | K62: 50000
A63: 4725560 | B63: 349900 | C63: Gilbert | D63: AZ | E63: 85234 | F63: 3 | G63: 2 | H63: 2475 | I63: 141.3737374 | J63: 116633.3333 | K63: 69980
A64: 4735267 | B64: 349900 | C64: Gilbert | D64: AZ | E64: 85233 | F64: 5 | G64: 3 | H64: 3284 | I64: 106.546894 | J64: 69980 | K64: 43737.5
A65: 4740046 | B65: 349900 | C65: Gilbert | D65: AZ | E65: 85233 | F65: 4 | G65: 2 | H65: 2507 | I65: 139.5692062 | J65: 87475 | K65: 58316.66667
A66: 4699608 | B66: 349700 | C66: Gilbert | D66: AZ | E66: 85296 | F66: 5 | G66: 3 | H66: 3034 | I66: 115.2603823 | J66: 69940 | K66: 43712.5
A67: 4726848 | B67: 349500 | C67: Gilbert | D67: AZ | E67: 85297 | F67: 3 | G67: 4 | H67: 2948 | I67: =B67/H67 -> 118.5549525 | J67: =B67/F67 -> 116500 | K67: =B67/SUM(F67:G67) -> 49928.57143
A68: 4738059 | B68: 345995 | C68: Gilbert | D68: AZ | E68: 85297 | F68: 3 | G68: 2 | H68: 3111 | I68: 111.2166506 | J68: 115331.6667 | K68: 69199
A69: 4735242 | B69: 345000 | C69: Gilbert | D69: AZ | E69: 85295 | F69: 4 | G69: 3 | H69: 3518 | I69: 98.06708357 | J69: 86250 | K69: 49285.71429
A70: 4737434 | B70: 345000 | C70: Gilbert | D70: AZ | E70: 85295 | F70: 4 | G70: 3 | H70: 3000 | I70: 115 | J70: 86250 | K70: 49285.71429
A71: 4697640 | B71: 341968 | C71: Gilbert | D71: AZ | E71: 85295 | F71: 4 | G71: 4 | H71: 3729 | I71: 91.70501475 | J71: 85492 | K71: 42746
A72: 4630779 | B72: 339900 | C72: Gilbert | D72: AZ | E72: 85298 | F72: 2 | G72: 2 | H72: 1650 | I72: 206 | J72: 169950 | K72: 84975
A73: 4720636 | B73: 339900 | C73: Gilbert | D73: AZ | E73: 85298 | F73: 2 | G73: 2 | H73: 1703 | I73: 199.5889607 | J73: 169950 | K73: 84975
A74: 4638963 | B74: 339500 | C74: Gilbert | D74: AZ | E74: 85234 | F74: 3 | G74: 3 | H74: 2944 | I74: 115.3192935 | J74: 113166.6667 | K74: 56583.33333
A75: 4560243 | B75: 336000 | C75: Gilbert | D75: AZ | E75: 85298 | F75: 2 | G75: 2 | H75: 2551 | I75: 131.7130537 | J75: 168000 | K75: 84000
A76: 4740763 | B76: 335000 | C76: Gilbert | D76: AZ | E76: 85233 | F76: 5 | G76: 3 | H76: 2732 | I76: 122.6207906 | J76: 67000 | K76: 41875
A77: 4671793 | B77: 330000 | C77: Gilbert | D77: AZ | E77: 85298 | F77: 3 | G77: 2 | H77: 2274 | I77: 145.1187335 | J77: 110000 | K77: 66000
A78: 4718831 | B78: 330000 | C78: Gilbert | D78: AZ | E78: 85233 | F78: 6 | G78: 3 | H78: 3255 | I78: 101.3824885 | J78: 55000 | K78: 36666.66667
A79: 4741811 | B79: 329990 | C79: Gilbert | D79: AZ | E79: 85297 | F79: 4 | G79: 3 | H79: 3142 | I79: 105.0254615 | J79: 82497.5 | K79: 47141.42857
A80: 4530364 | B80: 329900 | C80: Gilbert | D80: AZ | E80: 85298 | F80: 2 | G80: 2 | H80: 1917 | I80: 172.0918101 | J80: 164950 | K80: 82475
A81: 4742891 | B81: 329900 | C81: Gilbert | D81: AZ | E81: 85298 | F81: 4 | G81: 3 | H81: 2740 | I81: 120.4014599 | J81: 82475 | K81: 47128.57143
A82: 4679824 | B82: 329000 | C82: Gilbert | D82: AZ | E82: 85234 | F82: 4 | G82: 3 | H82: 3100 | I82: 106.1290323 | J82: 82250 | K82: 47000
A83: 4716609 | B83: 329000 | C83: Gilbert | D83: AZ | E83: 85298 | F83: 3 | G83: 2 | H83: 2231 | I83: 147.4675034 | J83: 109666.6667 | K83: 65800
A84: 4736649 | B84: 329000 | C84: Gilbert | D84: AZ | E84: 85298 | F84: 3 | G84: 3 | H84: 2358 | I84: 139.5250212 | J84: 109666.6667 | K84: 54833.33333
A85: 4721779 | B85: 326900 | C85: Gilbert | D85: AZ | E85: 85296 | F85: 5 | G85: 4 | H85: 3328 | I85: 98.22716346 | J85: 65380 | K85: 36322.22222
A86: 4739831 | B86: 325918 | C86: Gilbert | D86: AZ | E86: 85297 | F86: 4 | G86: 2 | H86: 2833 | I86: 115.0434169 | J86: 81479.5 | K86: 54319.66667
A87: 4693874 | B87: 325000 | C87: Gilbert | D87: AZ | E87: 85295 | F87: 5 | G87: 3 | H87: 3739 | I87: 86.9216368 | J87: 65000 | K87: 40625
A88: 4741051 | B88: 325000 | C88: Gilbert | D88: AZ | E88: 85234 | F88: 4 | G88: 2 | H88: 2336 | I88: 139.1267123 | J88: 81250 | K88: 54166.66667
A89: 4742296 | B89: 325000 | C89: Gilbert | D89: AZ | E89: 85298 | F89: 4 | G89: 2 | H89: 2986 | I89: 108.8412592 | J89: 81250 | K89: 54166.66667
A90: 4684022 | B90: 324900 | C90: Gilbert | D90: AZ | E90: 85298 | F90: 2 | G90: 2 | H90: 2114 | I90: 153.6896878 | J90: 162450 | K90: 81225
A91: 4727049 | B91: 324727 | C91: Gilbert | D91: AZ | E91: 85234 | F91: 4 | G91: 3 | H91: 2537 | I91: 127.9964525 | J91: 81181.75 | K91: 46389.57143
A92: 4704850 | B92: 318689 | C92: Gilbert | D92: AZ | E92: 85297 | F92: 4 | G92: 3 | H92: 2766 | I92: 115.2165582 | J92: 79672.25 | K92: 45527
A93: 4731480 | B93: 315900 | C93: Gilbert | D93: AZ | E93: 85295 | F93: 4 | G93: 2 | H93: 3432 | I93: 92.04545455 | J93: 78975 | K93: 52650
A94: 4665022 | B94: 315000 | C94: Gilbert | D94: AZ | E94: 85233 | F94: 5 | G94: 4 | H94: 4198 | I94: 75.0357313 | J94: 63000 | K94: 35000
A95: 4711386 | B95: 315000 | C95: Gilbert | D95: AZ | E95: 85297 | F95: 5 | G95: 3 | H95: 2984 | I95: 105.5630027 | J95: 63000 | K95: 39375
A96: 4695213 | B96: 313500 | C96: Gilbert | D96: AZ | E96: 85298 | F96: 2 | G96: 2 | H96: 2114 | I96: 148.2970672 | J96: 156750 | K96: 78375
A97: 4741803 | B97: 310000 | C97: Gilbert | D97: AZ | E97: 85233 | F97: 4 | G97: 2 | H97: 3059 | I97: 101.3403073 | J97: 77500 | K97: 51666.66667
A98: 4668698 | B98: 309900 | C98: Gilbert | D98: AZ | E98: 85233 | F98: 4 | G98: 2 | H98: 3089 | I98: 100.3237294 | J98: 77475 | K98: 51650
A99: 4698246 | B99: 309358 | C99: Gilbert | D99: AZ | E99: 85298 | F99: 4 | G99: 2 | H99: 2865 | I99: 107.9783595 | J99: 77339.5 | K99: 51559.66667
A100: 4465414 | B100: 307900 | C100: Gilbert | D100: AZ | E100: 85234 | F100: 4 | G100: 2 | H100: 3136 | I100: 98.18239796 | J100: 76975 | K100: 51316.66667
A101: 4742364 | B101: 304500 | C101: Gilbert | D101: AZ | E101: 85233 | F101: 3 | G101: 2 | H101: 2400 | I101: 126.875 | J101: 101500 | K101: 60900
A102: 4702630 | B102: 300000 | C102: Gilbert | D102: AZ | E102: 85298 | F102: 2 | G102: 2 | H102: 2114 | I102: 141.9110691 | J102: 150000 | K102: 75000
A103: 4722121 | B103: 299900 | C103: Gilbert | D103: AZ | E103: 85233 | F103: 5 | G103: 3 | H103: 2806 | I103: 106.8781183 | J103: 59980 | K103: 37487.5
A104: 4740045 | B104: 299900 | C104: Gilbert | D104: AZ | E104: 85297 | F104: 5 | G104: 3 | H104: 3039 | I104: 98.68377756 | J104: 59980 | K104: 37487.5
A105: 4693465 | B105: 299000 | C105: Gilbert | D105: AZ | E105: 85234 | F105: 3 | G105: 2 | H105: 2172 | I105: 137.6611418 | J105: 99666.66667 | K105: 59800
A106: 4736207 | B106: 299000 | C106: Gilbert | D106: AZ | E106: 85295 | F106: 5 | G106: 2 | H106: 2797 | I106: 106.9002503 | J106: 59800 | K106: 42714.28571
A107: 4736837 | B107: 295898 | C107: Gilbert | D107: AZ | E107: 85297 | F107: 4 | G107: 2 | H107: 2691 | I107: 109.9583798 | J107: 73974.5 | K107: 49316.33333
A108: 4742546 | B108: 295000 | C108: Gilbert | D108: AZ | E108: 85297 | F108: 3 | G108: 2 | H108: 1632 | I108: 180.7598039 | J108: 98333.33333 | K108: 59000
A109: 4737571 | B109: 294665 | C109: Gilbert | D109: AZ | E109: 85296 | F109: 4 | G109: 2 | H109: 2747 | I109: 107.2679286 | J109: 73666.25 | K109: 49110.83333
A110: 4711478 | B110: 294000 | C110: Gilbert | D110: AZ | E110: 85298 | F110: 3 | G110: 2 | H110: 2551 | I110: 115.248922 | J110: 98000 | K110: 58800
A111: 4737536 | B111: 290085 | C111: Gilbert | D111: AZ | E111: 85296 | F111: 4 | G111: 2 | H111: 2747 | I111: 105.6006553 | J111: 72521.25 | K111: 48347.5
A112: 4722108 | B112: 290000 | C112: Gilbert | D112: AZ | E112: 85297 | F112: 4 | G112: 3 | H112: 1931 | I112: 150.1812532 | J112: 72500 | K112: 41428.57143
A113: 4738374 | B113: 290000 | C113: Gilbert | D113: AZ | E113: 85233 | F113: 4 | G113: 2 | H113: 2414 | I113: 120.1325601 | J113: 72500 | K113: 48333.33333
A114: 4737356 | B114: 289900 | C114: Gilbert | D114: AZ | E114: 85295 | F114: 5 | G114: 3 | H114: 2493 | I114: 116.2855997 | J114: 57980 | K114: 36237.5
A115: 4742354 | B115: 289900 | C115: Gilbert | D115: AZ | E115: 85234 | F115: 3 | G115: 3 | H115: 0 | J115: 96633.33333 | K115: 48316.66667
A116: 4719537 | B116: 289899 | C116: Gilbert | D116: AZ | E116: 85295 | F116: 5 | G116: 3 | H116: 3211 | I116: 90.28308938 | J116: 57979.8 | K116: 36237.375
A117: 4719062 | B117: 289800 | C117: Gilbert | D117: AZ | E117: 85296 | F117: 6 | G117: 3 | H117: 3891 | I117: 74.47956823 | J117: 48300 | K117: 32200
A118: 4738199 | B118: 289000 | C118: Gilbert | D118: AZ | E118: 85234 | F118: 5 | G118: 3 | H118: 3385 | I118: 85.37666174 | J118: 57800 | K118: 36125
A119: 4743023 | B119: 289000 | C119: Gilbert | D119: AZ | E119: 85234 | F119: 6 | G119: 3 | H119: 2706 | I119: 106.7997044 | J119: 48166.66667 | K119: 32111.11111
A120: 4649234 | B120: 285000 | C120: Gilbert | D120: AZ | E120: 85234 | F120: 5 | G120: 3 | H120: 3116 | I120: 91.46341463 | J120: 57000 | K120: 35625
A121: 4742058 | B121: 285000 | C121: Gilbert | D121: AZ | E121: 85297 | F121: 5 | G121: 3 | H121: 3353 | I121: 84.9985088 | J121: 57000 | K121: 35625
A122: 4687789 | B122: 284900 | C122: Gilbert | D122: AZ | E122: 85233 | F122: 5 | G122: 3 | H122: 2856 | I122: 99.75490196 | J122: 56980 | K122: 35612.5
A123: 4723028 | B123: 284900 | C123: Gilbert | D123: AZ | E123: 85234 | F123: 4 | G123: 3 | H123: 1967 | I123: 144.8398577 | J123: 71225 | K123: 40700
A124: 4737538 | B124: 284500 | C124: Gilbert | D124: AZ | E124: 85234 | F124: 4 | G124: 2 | H124: 2685 | I124: 105.9590317 | J124: 71125 | K124: 47416.66667
A125: 4709186 | B125: 280000 | C125: Gilbert | D125: AZ | E125: 85298 | F125: 5 | G125: 3 | H125: 2540 | I125: 110.2362205 | J125: 56000 | K125: 35000
A126: 4733475 | B126: 279900 | C126: Gilbert | D126: AZ | E126: 85298 | F126: 4 | G126: 2 | H126: 2873 | I126: 97.42429516 | J126: 69975 | K126: 46650
A127: 4742308 | B127: 279900 | C127: Gilbert | D127: AZ | E127: 85295 | F127: 5 | G127: 4 | H127: 3152 | I127: 88.80076142 | J127: 55980 | K127: 31100
A128: 4693050 | B128: 279000 | C128: Gilbert | D128: AZ | E128: 85233 | F128: 4 | G128: 2 | H128: 3009 | I128: 92.7218345 | J128: 69750 | K128: 46500
A129: 4702288 | B129: 279000 | C129: Gilbert | D129: AZ | E129: 85297 | F129: 3 | G129: 2 | H129: 2185 | I129: 127.6887872 | J129: 93000 | K129: 55800
A130: 4733956 | B130: 278500 | C130: Gilbert | D130: AZ | E130: 85298 | F130: 3 | G130: 2 | H130: 2000 | I130: 139.25 | J130: 92833.33333 | K130: 55700
A131: 4717011 | B131: 277327 | C131: Gilbert | D131: AZ | E131: 85297 | F131: 3 | G131: 3 | H131: 2389 | I131: =B131/H131 -> 116.0849728 | J131: =B131/F131 -> 92442.33333 | K131: =B131/SUM(F131:G131) -> 46221.16667
A132: 4713844 | B132: 275000 | C132: Gilbert | D132: AZ | E132: 85234 | F132: 5 | G132: 3 | H132: 2355 | I132: 116.7728238 | J132: 55000 | K132: 34375
A133: 4734442 | B133: 275000 | C133: Gilbert | D133: AZ | E133: 85233 | F133: 3 | G133: 2 | H133: 2299 | I133: 119.6172249 | J133: 91666.66667 | K133: 55000
A134: 4740399 | B134: 274900 | C134: Gilbert | D134: AZ | E134: 85234 | F134: 5 | G134: 3 | H134: 2719 | I134: 101.1033468 | J134: 54980 | K134: 34362.5
A135: 4741540 | B135: 274800 | C135: Gilbert | D135: AZ | E135: 85296 | F135: 4 | G135: 3 | H135: 2554 | I135: 107.595928 | J135: 68700 | K135: 39257.14286
A136: 4562753 | B136: 274059 | C136: Gilbert | D136: AZ | E136: 85298 | F136: 3 | G136: 2 | H136: 2247 | I136: 121.9666222 | J136: 91353 | K136: 54811.8
A137: 4702090 | B137: 270000 | C137: Gilbert | D137: AZ | E137: 85234 | F137: 5 | G137: 3 | H137: 3116 | I137: 86.64955071 | J137: 54000 | K137: 33750
A138: 4686963 | B138: 269900 | C138: Gilbert | D138: AZ | E138: 85298 | F138: 2 | G138: 2 | H138: 2114 | I138: 127.6726585 | J138: 134950 | K138: 67475
A139: 4723391 | B139: 269900 | C139: Gilbert | D139: AZ | E139: 85233 | F139: 4 | G139: 2 | H139: 2583 | I139: 104.4909021 | J139: 67475 | K139: 44983.33333
A140: 4739736 | B140: 269500 | C140: Gilbert | D140: AZ | E140: 85298 | F140: 3 | G140: 2 | H140: 2361 | I140: 114.1465481 | J140: 89833.33333 | K140: 53900
A141: 4702823 | B141: 269000 | C141: Gilbert | D141: AZ | E141: 85298 | F141: 4 | G141: 2 | H141: 3266 | I141: 82.3637477 | J141: 67250 | K141: 44833.33333
A142: 4735337 | B142: 269000 | C142: Gilbert | D142: AZ | E142: 85297 | F142: 4 | G142: 2 | H142: 2512 | I142: 107.0859873 | J142: 67250 | K142: 44833.33333
A143: 4724535 | B143: 268900 | C143: Gilbert | D143: AZ | E143: 85295 | F143: 4 | G143: 2 | H143: 3102 | I143: 86.68600903 | J143: 67225 | K143: 44816.66667
A144: 4735656 | B144: 267225 | C144: Gilbert | D144: AZ | E144: 85234 | F144: 4 | G144: 2 | H144: 2623 | I144: 101.877621 | J144: 66806.25 | K144: 44537.5
A145: 4732983 | B145: 266384 | C145: Gilbert | D145: AZ | E145: 85295 | F145: 4 | G145: 2 | H145: 2478 | I145: 107.4995964 | J145: 66596 | K145: 44397.33333
A146: 4675985 | B146: 265000 | C146: Gilbert | D146: AZ | E146: 85297 | F146: 4 | G146: 2 | H146: 3221 | I146: 82.27258615 | J146: 66250 | K146: 44166.66667
A147: 4742206 | B147: 265000 | C147: Gilbert | D147: AZ | E147: 85234 | F147: 5 | G147: 3 | H147: 2527 | I147: 104.8674317 | J147: 53000 | K147: 33125
A148: 4711996 | B148: 264500 | C148: Gilbert | D148: AZ | E148: 85298 | F148: 4 | G148: 3 | H148: 3247 | I148: 81.45980905 | J148: 66125 | K148: 37785.71429
A149: 4731387 | B149: 264434 | C149: Gilbert | D149: AZ | E149: 85298 | F149: 2 | G149: 2 | H149: 1703 | I149: 155.2753964 | J149: 132217 | K149: 66108.5
A150: 4720220 | B150: 264000 | C150: Gilbert | D150: AZ | E150: 85298 | F150: 4 | G150: 2 | H150: 2109 | I150: 125.1778094 | J150: 66000 | K150: 44000
A151: 4710995 | B151: 261957 | C151: Gilbert | D151: AZ | E151: 85295 | F151: 4 | G151: 2 | H151: 2478 | I151: 105.7130751 | J151: 65489.25 | K151: 43659.5
A152: 4717906 | B152: 260470 | C152: Gilbert | D152: AZ | E152: 85298 | F152: 3 | G152: 2 | H152: 2109 | I152: 123.5040303 | J152: 86823.33333 | K152: 52094
A153: 4623640 | B153: 260000 | C153: Gilbert | D153: AZ | E153: 85233 | F153: 3 | G153: 2 | H153: 2832 | I153: 91.8079096 | J153: 86666.66667 | K153: 52000
A154: 4725159 | B154: 260000 | C154: Gilbert | D154: AZ | E154: 85234 | F154: 4 | G154: 3 | H154: 2538 | I154: 102.4428684 | J154: 65000 | K154: 37142.85714
A155: 4691586 | B155: 259990 | C155: Gilbert | D155: AZ | E155: 85234 | F155: 4 | G155: 3 | H155: 3100 | I155: 83.86774194 | J155: 64997.5 | K155: 37141.42857
A156: 4738280 | B156: 259900 | C156: Gilbert | D156: AZ | E156: 85233 | F156: 5 | G156: 3 | H156: 2947 | I156: 88.19138107 | J156: 51980 | K156: 32487.5
A157: 4743093 | B157: 259900 | C157: Gilbert | D157: AZ | E157: 85233 | F157: 4 | G157: 2 | H157: 2377 | I157: 109.3395036 | J157: 64975 | K157: 43316.66667
A158: 4736973 | B158: 259500 | C158: Gilbert | D158: AZ | E158: 85233 | F158: 4 | G158: 2 | H158: 2010 | I158: 129.1044776 | J158: 64875 | K158: 43250
A159: 4725100 | B159: 259000 | C159: Gilbert | D159: AZ | E159: 85297 | F159: 3 | G159: 3 | H159: 2192 | I159: 118.1569343 | J159: 86333.33333 | K159: 43166.66667
A160: 4738401 | B160: 258000 | C160: Gilbert | D160: AZ | E160: 85233 | F160: 5 | G160: 3 | H160: 2376 | I160: 108.5858586 | J160: 51600 | K160: 32250
A161: 4686047 | B161: 257900 | C161: Gilbert | D161: AZ | E161: 85298 | F161: 2 | G161: 2 | H161: 1703 | I161: 151.4386377 | J161: 128950 | K161: 64475
A162: 4727809 | B162: 256840 | C162: Gilbert | D162: AZ | E162: 85297 | F162: 5 | G162: 3 | H162: 2785 | I162: 92.22262118 | J162: 51368 | K162: 32105
A163: 4635548 | B163: 255000 | C163: Gilbert | D163: AZ | E163: 85233 | F163: 4 | G163: 3 | H163: 3045 | I163: 83.74384236 | J163: 63750 | K163: 36428.57143
A164: 4742230 | B164: 255000 | C164: Gilbert | D164: AZ | E164: 85234 | F164: 4 | G164: 2 | H164: 2197 | I164: 116.0673646 | J164: 63750 | K164: 42500
A165: 4719055 | B165: 254900 | C165: Gilbert | D165: AZ | E165: 85297 | F165: 4 | G165: 2 | H165: 2200 | I165: 115.8636364 | J165: 63725 | K165: 42483.33333
A166: 4731884 | B166: 254900 | C166: Gilbert | D166: AZ | E166: 85298 | F166: 3 | G166: 2 | H166: 2097 | I166: 121.5546018 | J166: 84966.66667 | K166: 50980
A167: 4734489 | B167: 254900 | C167: Gilbert | D167: AZ | E167: 85298 | F167: 2 | G167: 2 | H167: 1473 | I167: 173.048201 | J167: 127450 | K167: 63725
A168: 4741226 | B168: 254900 | C168: Gilbert | D168: AZ | E168: 85295 | F168: 5 | G168: 3 | H168: 3356 | I168: 75.95351609 | J168: 50980 | K168: 31862.5
A169: 4737507 | B169: 253023 | C169: Gilbert | D169: AZ | E169: 85298 | F169: 5 | G169: 4 | H169: 2887 | I169: 87.64218912 | J169: 50604.6 | K169: 28113.66667
A170: 4729105 | B170: 250000 | C170: Gilbert | D170: AZ | E170: 85295 | F170: 4 | G170: 2 | H170: 2314 | I170: 108.0380294 | J170: 62500 | K170: 41666.66667
A171: 4730313 | B171: 250000 | C171: Gilbert | D171: AZ | E171: 85296 | F171: 4 | G171: 3 | H171: 3102 | I171: 80.5931657 | J171: 62500 | K171: 35714.28571
A172: 4733167 | B172: 250000 | C172: Gilbert | D172: AZ | E172: 85298 | F172: 4 | G172: 3 | H172: 2121 | I172: 117.8689298 | J172: 62500 | K172: 35714.28571
A173: 4740974 | B173: 250000 | C173: Gilbert | D173: AZ | E173: 85233 | F173: 4 | G173: 2 | H173: 2198 | I173: 113.7397634 | J173: 62500 | K173: 41666.66667
A174: 4743227 | B174: 250000 | C174: Gilbert | D174: AZ | E174: 85296 | F174: 4 | G174: 2 | H174: 2604 | I174: 96.00614439 | J174: 62500 | K174: 41666.66667
A175: 4687508 | B175: 249999 | C175: Gilbert | D175: AZ | E175: 85298 | F175: 4 | G175: 2 | H175: 2064 | I175: 121.1235465 | J175: 62499.75 | K175: 41666.5
A176: 4716397 | B176: 249900 | C176: Gilbert | D176: AZ | E176: 85297 | F176: 3 | G176: 2 | H176: 1955 | I176: 127.826087 | J176: 83300 | K176: 49980
A177: 4728609 | B177: 249900 | C177: Gilbert | D177: AZ | E177: 85295 | F177: 4 | G177: 3 | H177: 2146 | I177: 116.4492078 | J177: 62475 | K177: 35700
A178: 4741195 | B178: 249900 | C178: Gilbert | D178: AZ | E178: 85233 | F178: 4 | G178: 2 | H178: 2255 | I178: 110.8203991 | J178: 62475 | K178: 41650
A179: 4735624 | B179: 249748 | C179: Gilbert | D179: AZ | E179: 85234 | F179: 3 | G179: 2 | H179: 2304 | I179: 108.3975694 | J179: 83249.33333 | K179: 49949.6
A180: 4670537 | B180: 245344 | C180: Gilbert | D180: AZ | E180: 85298 | F180: 3 | G180: 2 | H180: 2070 | I180: 118.5236715 | J180: 81781.33333 | K180: 49068.8
A181: 4722270 | B181: 244950 | C181: Gilbert | D181: AZ | E181: 85298 | F181: 3 | G181: 2 | H181: 2380 | I181: 102.9201681 | J181: 81650 | K181: 48990
A182: 4684433 | B182: 242000 | C182: Gilbert | D182: AZ | E182: 85298 | F182: 2 | G182: 2 | H182: 2231 | I182: 108.4715374 | J182: 121000 | K182: 60500
A183: 4710943 | B183: 240000 | C183: Gilbert | D183: AZ | E183: 85295 | F183: 5 | G183: 3 | H183: 3345 | I183: 71.74887892 | J183: 48000 | K183: 30000
A184: 4707085 | B184: 239900 | C184: Gilbert | D184: AZ | E184: 85296 | F184: 4 | G184: 3 | H184: 2694 | I184: 89.04974016 | J184: 59975 | K184: 34271.42857
A185: 4735913 | B185: 239900 | C185: Gilbert | D185: AZ | E185: 85234 | F185: 4 | G185: 3 | H185: 2177 | I185: 110.1975195 | J185: 59975 | K185: 34271.42857
A186: 4738979 | B186: 239900 | C186: Gilbert | D186: AZ | E186: 85298 | F186: 2 | G186: 2 | H186: 1604 | I186: 149.563591 | J186: 119950 | K186: 59975
A187: 4742269 | B187: 239900 | C187: Gilbert | D187: AZ | E187: 85297 | F187: 5 | G187: 3 | H187: 3193 | I187: 75.13310366 | J187: 47980 | K187: 29987.5
A188: 4723894 | B188: 239663 | C188: Gilbert | D188: AZ | E188: 85297 | F188: 4 | G188: 3 | H188: 2503 | I188: 95.75029964 | J188: 59915.75 | K188: 34237.57143
A189: 4718613 | B189: 237500 | C189: Gilbert | D189: AZ | E189: 85297 | F189: 4 | G189: 2 | H189: 2560 | I189: 92.7734375 | J189: 59375 | K189: 39583.33333
A190: 4634666 | B190: 236900 | C190: Gilbert | D190: AZ | E190: 85298 | F190: 5 | G190: 3 | H190: 3062 | I190: 77.36773351 | J190: 47380 | K190: 29612.5
A191: 4718404 | B191: 236900 | C191: Gilbert | D191: AZ | E191: 85298 | F191: 4 | G191: 2 | H191: 2375 | I191: 99.74736842 | J191: 59225 | K191: 39483.33333
A192: 4733589 | B192: 235000 | C192: Gilbert | D192: AZ | E192: 85298 | F192: 3 | G192: 3 | H192: 2020 | I192: 116.3366337 | J192: 78333.33333 | K192: 39166.66667
A193: 4737029 | B193: 235000 | C193: Gilbert | D193: AZ | E193: 85296 | F193: 4 | G193: 3 | H193: 2239 | I193: 104.9575703 | J193: 58750 | K193: 33571.42857
A194: 4737217 | B194: 235000 | C194: Gilbert | D194: AZ | E194: 85234 | F194: 4 | G194: 2 | H194: 2513 | I194: 93.51372861 | J194: 58750 | K194: 39166.66667
A195: 4742496 | B195: 235000 | C195: Gilbert | D195: AZ | E195: 85296 | F195: 4 | G195: 2 | H195: 2298 | I195: =B195/H195 -> 102.2628372 | J195: =B195/F195 -> 58750 | K195: =B195/SUM(F195:G195) -> 39166.66667
A196: 4742361 | B196: 234000 | C196: Gilbert | D196: AZ | E196: 85234 | F196: 4 | G196: 3 | H196: 2885 | I196: 81.10918544 | J196: 58500 | K196: 33428.57143
A197: 4717532 | B197: 233000 | C197: Gilbert | D197: AZ | E197: 85298 | F197: 4 | G197: 3 | H197: 3073 | I197: 75.82167263 | J197: 58250 | K197: 33285.71429
A198: 4741879 | B198: 232990 | C198: Gilbert | D198: AZ | E198: 85298 | F198: 4 | G198: 3 | H198: 0 | J198: 58247.5 | K198: 33284.28571
A199: 4722514 | B199: 231351 | C199: Gilbert | D199: AZ | E199: 85295 | F199: 3 | G199: 2 | H199: 2088 | I199: 110.8002874 | J199: 77117 | K199: 46270.2
A200: 4734463 | B200: 230000 | C200: Gilbert | D200: AZ | E200: 85233 | F200: 3 | G200: 2 | H200: 1957 | I200: 117.5268268 | J200: 76666.66667 | K200: 46000
... 121 more rows

Sheet Full Housing Data List (hidden)

Sheet Query (hidden)
A1: Save Search Share
A2: 320
A3: Total Properties Found
A4: < Revise Property Search
A5: < Previous | 1 << 3 4 5 6 7 of 7
A6: Returning User Log in Create a FREE Account
A7: Receive Matching Properties via Email, Save Listings, & Much More!
A8: Results per page:
A9: 4735225
A10: 164500
A11: Gilbert, AZ, 85233
A12: Beds: 3, Baths: 2, SqFt: 1409
A13: MLS# 4735225
A14: View Details
A15: Save this Property
A16: View Slideshow
A17: 4737290
A18: 162500
A19: Gilbert, AZ, 85234
A20: Beds: 3, Baths: 2, SqFt: 1608
A21: MLS# 4737290
A22: View Details
A23: Save this Property
A24: View Slideshow
A25: 4728101
A26: 160000
A27: Gilbert, AZ, 85234
A28: Beds: 3, Baths: 2, SqFt: 1318
A29: MLS# 4728101
A30: View Details
A31: Save this Property
A32: View Slideshow
A33: 4740376
A34: 157000
A35: Gilbert, AZ, 85234
A36: Beds: 3, Baths: 2, SqFt: 1622
A37: MLS# 4740376
A38: View Details
A39: Save this Property
A40: View Slideshow
A41: 4742171
A42: 155000
A43: Gilbert, AZ, 85295
A44: Beds: 4, Baths: 2, SqFt: 1450
A45: MLS# 4742171
A46: View Details
A47: Save this Property
A48: View Slideshow
A49: 4713245
A50: 154900
A51: Gilbert, AZ, 85233
A52: Beds: 2, Baths: 2.5, SqFt: 1583
A53: MLS# 4713245
A54: View Details
A55: Save this Property
A56: View Slideshow
A57: 4738399
A58: 151500
A59: Gilbert, AZ, 85295
A60: Beds: 3, Baths: 2, SqFt: 1296
A61: MLS# 4738399
A62: View Details
A63: Save this Property
A64: View Slideshow
A65: 4741787
A66: 149900
A67: Gilbert, AZ, 85298
A68: Beds: 4, Baths: 2, SqFt: 1651
A69: MLS# 4741787
A70: View Details
A71: Save this Property
A72: View Slideshow
A73: 4741335
A74: 149500
A75: Gilbert, AZ, 85233
A76: Beds: 2, Baths: 2, SqFt: 1192
A77: MLS# 4741335
A78: View Details
A79: Save this Property
A80: View Slideshow
A81: 4714887
A82: 149000
A83: Gilbert, AZ, 85234
A84: Beds: 5, Baths: 3, SqFt: 2521
A85: MLS# 4714887
A86: View Details
A87: Save this Property
A88: View Slideshow
A89: 4738674
A90: 148000
A91: Gilbert, AZ, 85296
A92: Beds: 3, Baths: 2.5, SqFt: 2094
A93: MLS# 4738674
A94: View Details
A95: Save this Property
A96: View Slideshow
A97: 4735686
A98: 147500
A99: Gilbert, AZ, 85233
A100: Beds: 3, Baths: 2, SqFt: 1357
A101: MLS# 4735686
A102: View Details
A103: Save this Property
A104: View Slideshow
A105: 4738400
A106: 147500
A107: Gilbert, AZ, 85297
A108: Beds: 3, Baths: 2, SqFt: 1612
A109: MLS# 4738400
A110: View Details
A111: Save this Property
A112: View Slideshow
A113: 4742288
A114: 147000
A115: Gilbert, AZ, 85295
A116: Beds: 4, Baths: 3, SqFt: 1883
A117: MLS# 4742288
A118: View Details
A119: Save this Property
A120: View Slideshow
A121: 4735778
A122: 145000
A123: Gilbert, AZ, 85234
A124: Beds: 3, Baths: 2, SqFt: 1248
A125: MLS# 4735778
A126: View Details
A127: Save this Property
A128: View Slideshow
A129: 4743192
A130: 145000
A131: Gilbert, AZ, 85234
A132: Beds: 4, Baths: 2, SqFt: 1685
A133: MLS# 4743192
A134: View Details
A135: Save this Property
A136: 4737712
A137: 140000
A138: Gilbert, AZ, 85296
A139: Beds: 3, Baths: 2, SqFt: 1134
A140: MLS# 4737712
A141: View Details
A142: Save this Property
A143: View Slideshow
A144: 4730058
A145: 139900
A146: Gilbert, AZ, 85234
A147: Beds: 3, Baths: 2.5, SqFt: 1837
A148: MLS# 4730058
A149: View Details
A150: Save this Property
A151: View Slideshow
A152: 4739658
A153: 139000
A154: Gilbert, AZ, 85233
A155: Beds: 4, Baths: 2.5, SqFt: 2255
A156: MLS# 4739658
A157: View Details
A158: Save this Property
A159: View Slideshow
A160: 4725645
A161: 136000
A162: Gilbert, AZ, 85233
A163: Beds: 3, Baths: 1.75, SqFt: 1384
A164: MLS# 4725645
A165: View Details
A166: Save this Property
A167: View Slideshow
A168: 4743243
A169: 135000
A170: Gilbert, AZ, 85234
A171: Beds: 3, Baths: 2, SqFt: 1566
A172: MLS# 4743243
A173: View Details
A174: Save this Property
A175: 4742369
A176: 134000
A177: Gilbert, AZ, 85295
A178: Beds: 4, Baths: 2.5, SqFt: 2071
A179: MLS# 4742369
A180: View Details
A181: Save this Property
A182: View Slideshow
A183: 4742501
A184: 132900
A185: Gilbert, AZ, 85296
A186: Beds: 3, Baths: 2, SqFt: 1464
A187: MLS# 4742501
A188: View Details
A189: Save this Property
A190: View Slideshow
A191: 4742799
A192: 132000
A193: Gilbert, AZ, 85233
A194: Beds: 3, Baths: 2, SqFt: 1377
A195: MLS# 4742799
A196: View Details
A197: Save this Property
A198: 4743106
A199: 129900
A200: Gilbert, AZ, 85233
... 71 more rows

Sheet mlsID (hidden)
A1: Overview
A2: iPad
A3: iPhone
A4: Android
A5: Windows Phone 7
A6: Close
A7: Listings
A8: Sign Up Now, It's Free!
A9: Save searches and listings to receive email alerts of updates! Sign Up
A10: Already have an account? Sign In
A11: Saved (0)
A12: Save listings to receive email alerts of updates.
A13: Most recently viewed (3)
A15: 1235 Vista De Almadean Ct...
A16: 88888888
A17: 5 bed, 3 bath
A18: Manage Saved Listings
A19: Official Site of the National Association of REALTORSÂ® Official Site of the National Association of REALTORSÂ®
A20: Hi!
A21: Sign In
A22: Sign Up
A23: Mobile Apps â–¼
A24: Find Homesâ–¼
A25: Buy / Sell
A26: Rent
A27: International
A28: Commercial
A29: Find REALTORSÂ®
A30: Finance
A31: Moving
A32: Home & Garden
A33: It looks like Javascript is disabled in your browser. This site requires Javascript to be enabled in order to use our site. Please follow these instructions to enable Javascript.
A34: Real Estate
A35: Homes Find Your Home
A36: Search ResultsAny Locations
A37: Refine Your Search
A38: Save This Search
A39: Save This Search
A40: Start Over
A41: Getnew listingswhen they hit the market
A43: Sign Up for FREE
A44: What can I afford ?
A45: Change Location
A46: Get your FREE home value report
A48: Single Family Home Condo/Townhouse
A49: Get your report
A50: Advertisement
A51: Get Ready To Move
A52: Get Your 3 Credit Scores FREE. Click Here!
A53: Find a Mover
A54: Find your home with a Century 21 agent
A55: Buy Boxes & Packing Supplies
A56: The Easy Orange Mortgage from ING DIRECT
A57: SPONSORED LINKS
A58: 1 nearby property found
A59: Hide MapShow Map
A60: Highlight my search area
A61: Search using full map
A62: Reset Map
A63: Need help with this search? Search Assist can help
A64: Sort by
A65: 13703 E Shannon StreetGilbert, AZ 85295
A66: Photo of 13703 E Shannon Street, Gilbert, AZ 852959 photos
A67: Rental - $780
A68: 1 Bed, 1 Bath 625 Sq Ft 1.03 Acre Lot
A69: For Rent
A70: Brokered By: RE/MAX EXCALIBUR REALTY
A71: Free Spirit Ranch: Tired of Apartment living! This is for you! A guest house/free standing in the back of this l... more
A72: Go See It
A73: Save Listing
A74: 1
A75: Show10
A76: 20
A77: 50results per page
A78: Found 1 matching properties
A79: Email To:
A80: Multiple email addresses should be separated by a comma or semi-colon.
A81: First Name
A82: Last Name
A83: Your Email Address
A84: Message
A85: I found this listing on REALTOR.com(R). REALTOR.com(R) provides you with access to the most comprehensive and timely listings of residential properties to buy and rent.
A86: Send a copy of this message to me.
A87: Save this listing
A88: We will never share your personal information. Privacy Policy.
A89: Send Cancel
A90: THANK YOU
A91: Thanks!
A92: Your message is on the way.
A93: Close
A94: Ask a REALTORÂ®Real Experts with Real Answers
A95: Will An Arrest Affect The Home Buying Process? -
A96: Unless the DUI somehow impacted his/her income it should have nothing to do with the mortgage.Maria Picardi-Kenyon is a RealtorÂ® with Re/Max Tri Coun... Read full responseÂ»
A97: Â» See all Ask a REALTORÂ® Questions
A98: You will find more than property details on the listing here. You can also find quick facts that are easy to understand and compare about the home price, schools in the area, and many other important details. If you are interested in what is nearby - from schools, to businesses and services - the interactive maps are a great place to start. Many listings also provide more in-depth community statistics in charts and graphs that can tell you quite a bit about the community.
A100: Corporate Links
A101: Site Map
A102: Corporate News & Info
A103: Contact Us
A104: Advertise With Us
A105: Careers
A106: Terms of Use
A107: Privacy Policy
A108: Ad Choices
A109: Mobile
A110: Manage Email Preferences
A111: Operated by Move, Inc.
A112: Homes by REALTOR.com®
A113: REALTOR® Blogs
A114: Trends Blog
A115: What's Your Home Worth
A116: Find a Mover - Moving.com
A117: TOP PRODUCER
A118: New Homes
A119: Move Inc.
A120: Apartments for Rent from Move.com
A121: Realtor.com Rentals
A122: MLS Search
A123: US Property Search
A124: Senior Housing
A125: Assisted Living
A126: International Real Estate
A127: Connect to us on
A128: Facebook
A129: Twitter
A130: Operated by NATIONAL ASSOCIATION OF REALTORSÂ®
A131: Your Homeownership Resource
A132: Find Homes
A133: Find REALTORSÂ®
A134: Finance
A135: Moving
A136: Home & Garden
A137: Â©1995-2012 NATIONAL ASSOCIATION OF REALTORSÂ® and Move, Inc. All rights reserved. Equal Housing Opportunity REALTOR.comÂ® is the official site of the National Association of REALTORSÂ® and is operated by Move, Inc.
A139: REALTORÂ® -- A Registered collective membership mark that identifies a real estate professional who is a member of the National Association of REALTORSÂ® and subscribes to its strict Code of Ethics. Inquiries regarding the Code of Ethics should be directed to the board in which a REALTORÂ® holds membership.
A141: SEARCH ASSIST
A142: NOTE: If you are currently working with an agent, we recommend that you request this information from that agent.
A143: Search Alert Sign Up
A144: Get updated when new listings match your search
A145: Get
A146: new listings
A147: for:
A148: Your time is valuable!
A149: Let Search Assist send you new listings when they hit the market.
A150: Let Search Assist:
A151: Do the work so you don't have to
A152: Save you valuable time on your home search
A153: Help you avoid missing your ideal home
A154: Connect you to a real estate professional
A155: Sign-up for Search Assist today - It's FREE!
A160: Save This Search!
A161: Be among the first to learn about new listings that match your search.
A163: Relevant
A164: Save searches to find your favorite listings today and similar listings in the future.
A166: Convenient
A167: Quickly find all your Saved Listings and Saved Searches from the toolbar.
A169: Choose a specific location
A170: Only display areas with agents
A171: Knowing the specific location allows us to connect you with the most appropriate agent required
A172: Agent available
A173: No agent available
A174: Search Assist does not have an agent assigned to this area.
A175: You can do one of the following:
A176: 1
A177: Choose a different zipEnter a new location
A178: To sign up for Search Assist, choose an area with an Agent.
A180: 2
A181: Sign up for Search Alerts
A182: Continue to use this ZIP code as a Save Search.
A185: Contact me if you have any questions about any home for sale.
A187: I can help provide you with:
A188: Information on local neighborhoods
A189: The hottest new properties
A190: Personalized answers
A191: * This Real Estate Professional is closest to your search location.
A192: Location
A193: Price Range to
A194: Bed
A195: Bath
A196: Single Family Condo/Townhome Other
A197: Additional Requests Examples: Vaulted ceilings, near shopping and restaurants, granite counter tops, within walking...
A198: My Info Need to register? Sign up
A199: Email Address
A200: Password Forgot your password?
A201: Remember me on this computer
A202: Sign Up
A203: Privacy Policy
A204: Cancel
A205: My Info Already registered? Sign in
A206: First Name
A207: Last Name
A208: Email Address
A209: Phone Number
A210: Password
A211: Repeat Password
A212: Keep me informed about Move.com® and REALTOR.com® products and updates to my listings.
A213: Register to Save Preferences
A214: ? Sign in or Sign up to REALTOR.com®.
A215: Submit
A216: Privacy Policy
A217: Cancel
... 71 more rows

Sheet DCF1
A1: Rental Unit Addres:
A2: Inputs
A3: Purchase Price | B3: 100000
A4: Land Value | B4: 20000
A5: Improvement Value | B5: =B3-B4 -> 80000
A7: Investors Criteria and Contribution
A8: Initial Equity Investment | B8: 20000
A9: Investors Required Rate of Return | B9: 0.12
A11: Financing Information
A12: Mortgage Amount | B12: =B3-B8 -> 80000
A13: Financing Term (Years) | B13: 30
A14: No. of Payment Per Year | B14: 12
A15: Annual Mortgage Interest Rate | B15: 0.04
A16: Private Mortgage Insurance (yearly) | B16: 0
A17: Investment Term: Use Ribbon to Change | B17: 9
A19: Tax Information
A20: Depreciable Life (27.5 Res 39 Comm) | B20: 27.5
A21: Marginal Income Tax Rate | B21: 0.28
A22: Capital Gains Tax Rate | B22: 0.15
A23: Recapture Tax Rate | B23: 0.2
A24: Investor's Modified Adjusted Gross Inc. | B24: 100000
A25: Investor's Participation, Active? Y/N | B25: y
A27: Forecast Operating Data
A28: First Year forecast PGI | B28: 15000
A29: Annual Growth in PGI | B29: 0.03
A30: % Annual Vacancy | B30: 0.08
A31: % Operating Expenses of EFI | B31: 0.25
A32: Other Income | B32: 0
A33: Future Sales Information
A34: Forecast Future Sales Price | B34: 115000
A35: Future Selling Expenses | B35: 0.08
A37: Discounted Cash Flows | B37: 0 | C37: =B37+1 -> 1 | D37: =C37+1 -> 2 | E37: =D37+1 -> 3 | F37: =E37+1 -> 4 | G37: =F37+1 -> 5 | H37: =G37+1 -> 6 | I37: =H37+1 -> 7 | J37: =I37+1 -> 8 | K37: =J37+1 -> 9 | M37: Termination (Reversion) Statement
A38: Potential Gross Income | C38: =B28 -> 15000 | D38: =C38*(1+$B$29) -> 15450 | E38: =D38*(1+$B$29) -> 15913.5 | F38: =E38*(1+$B$29) -> 16390.905 | G38: =F38*(1+$B$29) -> 16882.63215 | H38: =G38*(1+$B$29) -> 17389.11111 | I38: =H38*(1+$B$29) -> 17910.78445 | J38: =I38*(1+$B$29) -> 18448.10798 | K38: =J38*(1+$B$29) -> 19001.55122 | M38: Gross Future Sales Price | N38: =$B$34 -> 115000
A39: Less Vacancy & Collection Loss | C39: =-C38*$B$30 -> -1200 | D39: =-D38*$B$30 -> -1236 | E39: =-E38*$B$30 -> -1273.08 | F39: =-F38*$B$30 -> -1311.2724 | G39: -1350.610572 | H39: -1391.128889 | I39: -1432.862756 | J39: -1475.848639 | K39: -1520.124098 | M39: Less Selling Expenses | N39: =-N38*$B$35 -> -9200
A40: Plus Other Income | C40: =$B$32*C38 -> 0 | D40: =$B$32*D38 -> 0 | E40: =$B$32*E38 -> 0 | F40: =$B$32*F38 -> 0 | G40: 0 | H40: 0 | I40: 0 | J40: 0 | K40: 0 | M40: Net Sales Proceeds | N40: =SUM(N38:N39) -> 105800
A41: Effective Gross Income | C41: =SUM(C38:C40) -> 13800 | D41: =SUM(D38:D40) -> 14214 | E41: =SUM(E38:E40) -> 14640.42 | F41: =SUM(F38:F40) -> 15079.6326 | G41: 15532.02158 | H41: 15997.98223 | I41: 16477.92169 | J41: 16972.25934 | K41: 17481.42712 | M41: Less Mortgage Balance | N41: =-B12+SUM(C48:K48) -> -63940.67833
A42: LessOperating Expenses | C42: =C41*-$B$31 -> -3450 | D42: =D41*-$B$31 -> -3553.5 | E42: =E41*-$B$31 -> -3660.105 | F42: =F41*-$B$31 -> -3769.90815 | G42: -3883.005394 | H42: -3999.495556 | I42: -4119.480423 | J42: -4243.064836 | K42: -4370.356781 | M42: Before Tax Cash on Sale | N42: =SUM(N40:N41) -> 41859.32167
A43: Net Operating Income | C43: =SUM(C41:C42) -> 10350 | D43: =SUM(D41:D42) -> 10660.5 | E43: =SUM(E41:E42) -> 10980.315 | F43: =SUM(F41:F42) -> 11309.72445 | G43: 11649.01618 | H43: 11998.48667 | I43: 12358.44127 | J43: 12729.19451 | K43: 13111.07034
A44: Less Private Mortage Insurance | C44: =$B$16 -> 0 | D44: =$B$16 -> 0 | E44: =$B$16 -> 0 | F44: 0 | G44: 0 | H44: 0 | I44: 0 | J44: 0 | K44: 0 | M44: Net Sales Proceeds | N44: =N40 -> 105800
A45: Less Annualized Mortgage Payments | C45: =PMT($B$15/$B$14,$B$13*$B$14,$B$12,0)*$B$14 -> -4583.186836 | D45: =PMT($B$15/$B$14,$B$13*$B$14,$B$12,0)*$B$14 -> -4583.186836 | E45: =PMT($B$15/$B$14,$B$13*$B$14,$B$12,0)*$B$14 -> -4583.186836 | F45: -4583.186836 | G45: -4583.186836 | H45: -4583.186836 | I45: -4583.186836 | J45: -4583.186836 | K45: -4583.186836 | M45: Less Cost Basis | N45: =-$B$3 -> -100000
A46: Before Tax Cash Flows | C46: =SUM(C43:C45) -> 5766.813164 | D46: =SUM(D43:D45) -> 6077.313164 | E46: =SUM(E43:E45) -> 6397.128164 | F46: =SUM(F43:F45) -> 6726.537614 | G46: 7065.829347 | H46: 7415.299833 | I46: 7775.254433 | J46: 8146.007671 | K46: 8527.883506 | M46: Capital Gain (Economic Gain) | N46: =SUM(N44:N45) -> 5800
A47: Less Annual Depreciation | C47: =-$B$5/$B$20 -> -2909.090909 | D47: =-$B$5/$B$20 -> -2909.090909 | E47: =-$B$5/$B$20 -> -2909.090909 | F47: -2909.090909 | G47: -2909.090909 | H47: -2909.090909 | I47: -2909.090909 | J47: -2909.090909 | K47: -2909.090909 | M47: X Capital Gains Rate | N47: =$B$22 -> 0.15
A48: Plus Annual Principal Paid | C48: =IF($B$12=0,0,-CUMPRINC($B$15/$B$14,$B$13*$B$14,$B$12,C37,C37*12,0)) -> 1408.829147 | D48: =IF($B$12=0,0,-CUMPRINC($B$15/$B$14,$B$13*$B$14,$B$12,C37*12,D37*12,0)) -> 1585.790143 | E48: =IF($B$12=0,0,-CUMPRINC($B$15/$B$14,$B$13*$B$14,$B$12,D37*12,E37*12,0)) -> 1650.39768 | F48: =IF($B$12=0,0,-CUMPRINC($B$15/$B$14,$B$13*$B$14,$B$12,E37*12,F37*12,0)) -> 1717.637428 | G48: =IF($B$12=0,0,-CUMPRINC($B$15/$B$14,$B$13*$B$14,$B$12,F37*12,G37*12,0)) -> 1787.616627 | H48: =IF($B$12=0,0,-CUMPRINC($B$15/$B$14,$B$13*$B$14,$B$12,G37*12,H37*12,0)) -> 1860.446886 | I48: =IF($B$12=0,0,-CUMPRINC($B$15/$B$14,$B$13*$B$14,$B$12,H37*12,I37*12,0)) -> 1936.244363 | J48: =IF($B$12=0,0,-CUMPRINC($B$15/$B$14,$B$13*$B$14,$B$12,I37*12,J37*12,0)) -> 2015.129946 | K48: =IF($B$12=0,0,-CUMPRINC($B$15/$B$14,$B$13*$B$14,$B$12,J37*12,K37*12,0)) -> 2097.229449 | M48: Capital Gains Taxes | N48: =IF($N$46<0,0,N46*N47) -> 870
A49: Taxable Income | C49: =C46+C47+C48 -> 4266.551401 | D49: =D46+D47+D48 -> 4754.012397 | E49: =E46+E47+E48 -> 5138.434934 | F49: =F46+F47+F48 -> 5535.084132 | G49: 5944.355065 | H49: 6366.65581 | I49: 6802.407887 | J49: 7252.046708 | K49: 7716.022046
A50: Less Taxes from BTCF | C50: =IF(C49<0,0,-C49*$B$21) -> -1194.634392 | D50: =IF(D49<0,0,-D49*$B$21) -> -1331.123471 | E50: =IF(E49<0,0,-E49*$B$21) -> -1438.761782 | F50: =IF(F49<0,0,-F49*$B$21) -> -1549.823557 | G50: -1664.419418 | H50: -1782.663627 | I50: -1904.674208 | J50: -2030.573078 | K50: -2160.486173 | M50: Accumulated Depreciation | N50: =-SUM(C47:K47) -> 26181.81818
A51: Savings from Passive Actitivity Loss | C51: =IF($B$25="n",0,IF(C49>0,0,IF($B$24>150000,0,IF($B$24>100000,MIN((150000-$B$24)*0.5,-C49),MIN(-C49,25000))))) -> 0 | D51: =IF($B$25="n",0,IF(D49>0,0,IF($B$24>150000,0,IF($B$24>100000,MIN((150000-$B$24)*0.5,-D49),MIN(-D49,25000))))) -> 0 | E51: =IF($B$25="n",0,IF(E49>0,0,IF($B$24>150000,0,IF($B$24>100000,MIN((150000-$B$24)*0.5,-E49),MIN(-E49,25000))))) -> 0 | F51: =IF($B$25="n",0,IF(F49>0,0,IF($B$24>150000,0,IF($B$24>100000,MIN((150000-$B$24)*0.5,-F49),MIN(-F49,25000))))) -> 0 | G51: 0 | H51: 0 | I51: 0 | J51: 0 | K51: 0 | M51: X Recapture Tax Rate | N51: =$B$23 -> 0.2
A52: After-tax Cash Flow from Operations | C52: =C46+C50 -> 4572.178771 | D52: =D46+D50 -> 4746.189692 | E52: =E46+E50 -> 4958.366382 | F52: =F46+F50 -> 5176.714056 | G52: 5401.409929 | H52: 5632.636206 | I52: 5870.580224 | J52: 6115.434593 | K52: 6367.397333 | M52: Recapture Taxes | N52: =IF(N46>0,N51*N50,MAX((N50+N46)*N51,0)) -> 5236.363636
A53: Initial Equity Investment | B53: =-$B$8 -> -20000
A54: After-tax Cash on Sale | K54: =N57 -> 35752.95803 | M54: Before Tax Cash on Sale | N54: =N42 -> 41859.32167
A55: Total After-tax Cash Flow | B55: =SUM(B52:B54) -> -20000 | C55: =SUM(C52:C54) -> 4572.178771 | D55: =SUM(D52:D54) -> 4746.189692 | E55: =SUM(E52:E54) -> 4958.366382 | F55: =SUM(F52:F54) -> 5176.714056 | G55: 5401.409929 | H55: 5632.636206 | I55: 5870.580224 | J55: 6115.434593 | K55: =SUM(K52:K54) -> 42120.35537 | M55: Less Capital Gains Taxes | N55: =-N48 -> -870
A56: IRR Partition Data: | B56: =B55 -> -20000 | C56: =-PV($B$73,C37,0,C52,0) -> 3569.275993 | D56: =-PV($B$73,D37,0,D52,0) -> 2892.403963 | E56: =-PV($B$73,E37,0,E52,0) -> 2358.899284 | F56: =-PV($B$73,F37,0,F52,0) -> 1922.568795 | G56: 1566.000076 | H56: 1274.832923 | I56: 1037.240638 | J56: 843.4954613 | K56: =K52 -> 6367.397333 | M56: Less Recapture Taxes | N56: =-N52 -> -5236.363636
A57: Reversion Value: | K57: =-PV(B73,K37,0,K54,0) -> 3849.677349 | M57: After Tax Cash on Sale | N57: =SUM(N54:N56) -> 35752.95803
A58: Investment Measures
A59: First Year Measures:
A60: Payback Period (years): | B60: =B8/C55 -> 4.374282153
A61: Profit Margin: | B61: =C55/C41 -> 0.3313173023
A62: Default or Breakeven Ratio: | B62: =(-C42+-C45)/C41 -> 0.5821149881
A63: Operating Expense Ratio: | B63: =-C42/C41 -> 0.25
A64: Debt Coverage Ratio: | B64: =C43/-C45 -> 2.258253999
A65: Loan to Value Ratio: | B65: =B12/B3 -> 0.8
A66: Effective Gross Income Multiplier: | B66: =B3/C41 -> 7.246376812
A67: Capitalization Rate: | B67: =C43/B3 -> 0.1035
A68: Before Tax Cash on Cash Return: | B68: =C46/B8 -> 0.2883406582
A69: After Tax Cash on Cash Return: | B69: =(C55)/B8 -> 0.2286089386
A71: Holding Period Measures:
A72: Net Present Value: | B72: =NPV($B$9,C55:K55)+B55 -> 20918.16853
A73: Internal Rate of Return: | B73: =IRR(B55:K55) -> 0.2809821319
A74: IRR Partition:
A75: IRR attributable to ATCF: | B75: =SUM(C56:K56) -> 21832.11447 | C75: =B75/B77 -> 0.8501009051
A76: IRR attributable to Reversion Value: | B76: =K57 -> 3849.677349 | C76: =B76/B77 -> 0.1498990949
A77: PV | B77: =SUM(B75:B76) -> 25681.79182
